Cogmind - Beta 12 @@@ ROGUE MODE // 2024.02.20 @ 22:12:34 // Winter2019/RPGLIKE Player: Luminiferous Result: Establishing 0b11! Performance ------------- Evolutions (9) 4500 Regions Visited (31) 6200 Robots Destroyed (443) 2215 Value Destroyed (20420) 20420 Prototype IDs (285) 5700 Alien Tech Used (4) 800 Bonus (36724) 36724 TOTAL SCORE: 76559 Bonus ------- High Alert Combat Kills 5702 Follower Combat Kills 663 Met Data Miner 300 Met Warlord at Base 500 MAIN.C Attacked Warlord 500 Warlord Defense Kills 862 A7 Reached Mainframe 300 Met Warlord at Research 2000 Invited to Help at Command 2000 Destroyed MAIN.C Guards 500 Met MAIN.C 5000 Destroyed MAIN.C Shell 5000 Destroyed MAIN.C 10000 Met Warlord at Command 2000 Win 3000 Friendly Fire -1603 Cogmind --------- Core Integrity 1000/1000 Matter 300/300 Energy 691/700 System Corruption 0% Temperature Cool (18) Movement Flying (20) Location 0b11 Command Parts ------- > --- POWER (2) -------- Vortex Chain Reactor > --- PROPULSION (6) --- Cooled Cesium-ion Thruster Cooled Cesium-ion Thruster Cooled Cesium-ion Thruster (fused) Cooled Cesium-ion Thruster (fused) Cooled Cesium-ion Thruster Cooled Field Propulsion Drive > --- UTILITY (13) ----- Gravity Neutralizer Advanced Sensor Array Advanced Signal Interpreter Experimental Melee Analysis Suite Core Analyzer Nanoactuators Nanoactuators Improved Actuator Array Advanced Reaction Control System Experimental Phase Shifter Improved Light Armor Plating Graphene Brace Experimental Shield Generator > --- WEAPON (2) ------- Sigix Broadsword > --- INVENTORY (6) ---- Protomatter-55 Mini Smartbomb Launcher Peak State ------------ > --- POWER ------------ Vortex Chain Reactor > --- PROPULSION ------- Experimental Biometal Medium Treads Cooled Cesium-ion Thruster Cooled Cesium-ion Thruster Cooled Cesium-ion Thruster Cooled Cesium-ion Thruster Cooled Field Propulsion Drive > --- UTILITY ---------- Gravity Neutralizer Advanced Sensor Array Advanced Signal Interpreter Experimental Melee Analysis Suite Core Analyzer Nanoactuators Nanoactuators Improved Actuator Array Advanced Reaction Control System Experimental Phase Shifter Improved Light Armor Plating Graphene Brace Experimental Shield Generator > --- WEAPON ----------- Sigix Broadsword > --- INVENTORY -------- Protomatter Protomatter Cooled Cesium-ion Thruster Mini Smartbomb Launcher [Rating: 174] Favorites ----------- Power Vortex Chain Reactor Engine Improved Deuterium Engine Power Core Light Nuclear Core Reactor Vortex Chain Reactor Propulsion Cooled Cesium-ion Thruster Treads Experimental Biometal Medium Treads Leg Aluminum Leg Wheel Armored Wheel Hover Unit Hover Unit Flight Unit Cooled Cesium-ion Thruster Utility Nanoactuators Device Nanoactuators Storage Large Matter Pod Processor Core Analyzer Hackware Advanced System Shield Protection Improved Medium Armor Plating Weapon Power Sword Energy Gun Small Laser Energy Cannon Beam Cannon Ballistic Gun Assault Rifle Ballistic Cannon Linear Accelerator Launcher Rocket Launcher Special Weapon Advanced Remote Datajack Impact Weapon Makeshift Hammer Slashing Weapon Power Sword Piercing Weapon Plasma Lance Special Melee Weapon Dirty Datajack Build | -11 -10 -10 -9 -9 -9 -8 -8 -7 -7 -7 -6 -6 -6 -6 -5 -5 -5 -5 -4 -4 -4 -4 -4 -4 -4 -3 -3 -2 -2 -1 -1 ------- Run | Jun Mat Min Mat Min Exi Min Mat Fac Low Dat Pro Fac Was Fac Fac Upp Upp War Pro Fac Was Fac Ext Cet Arc Res Qua Res Tes Acc Com Slots Evolved 19 | 3 1 . 5 . . . 3 1 . . . 1 . 1 . 1 . . . . . 1 . . . 1 . 1 . . . Power 1 | . . . 1 . . . . . . . . . . . . . . . . . . . . . . . . . . . . Propulsion 5 | 1 . . 2 . . . 2 . . . . . . . . . . . . . . . . . . . . . . . . Utility 12 | 1 1 . 2 . . . 1 1 . . . 1 . 1 . 1 . . . . . 1 . . . 1 . 1 . . . Weapon 1 | 1 . . . . . . . . . . . . . . . . . . . . . . . . . . . . . . . Parts Attached 442 | 4 23 . 29 2 . 10 31 32 12 . 2 16 2 24 17 7 8 6 1 16 8 12 20 2 . 52 23 20 23 16 24 Power 39 | 1 1 . 5 . . 1 4 12 . . . . . 4 2 . . 1 . 4 . . . . . . 2 . . . 2 Engine 16 | 1 1 . 3 . . . 1 9 . . . . . 1 . . . . . . . . . . . . . . . . . Core 16 | . . . 2 . . 1 3 3 . . . . . 3 2 . . . . 2 . . . . . . . . . . . Reactor 7 | . . . . . . . . . . . . . . . . . . 1 . 2 . . . . . . 2 . . . 2 Propulsion 68 | 2 6 . 11 . . . 13 2 . . . 6 . 4 1 . . . . 2 . 2 . . . 9 . . . . 10 Treads 3 | . . . . . . . . . . . . . . . . . . . . 1 . . . . . . . . . . 2 Leg 4 | . . . . . . . . . . . . . . 1 . . . . . . . . . . . 1 . . . . 2 Wheel 7 | 2 4 . 1 . . . . . . . . . . . . . . . . . . . . . . . . . . . . Hover 3 | . 2 . 1 . . . . . . . . . . . . . . . . . . . . . . . . . . . . Flight 51 | . . . 9 . . . 13 2 . . . 6 . 3 1 . . . . 1 . 2 . . . 8 . . . . 6 Utility 152 | . 5 . 4 . . 4 4 12 5 . . 5 2 12 11 3 2 3 1 . . 4 9 . . 27 7 2 13 12 5 Device 104 | . 3 . 1 . . 3 2 9 . . . 2 2 6 6 2 2 2 1 . . 4 7 . . 23 5 1 6 12 5 Storage 5 | . 1 . 1 . . . . 1 . . . 1 . . . . . . . . . . . . . . . . 1 . . Processor 13 | . 1 . . . . . 1 1 . . . 1 . 3 . . . . . . . . 1 . . 1 1 . 3 . . Hackware 2 | . . . . . . . . . . . . . . . 1 . . . . . . . . . . . . . 1 . . Protection 28 | . . . 2 . . 1 1 1 5 . . 1 . 3 4 1 . 1 . . . . 1 . . 3 1 1 2 . . Artifact . | . . . . . . . . . . . . . . . . . . . . . . . . . . . . . . . . Weapon 183 | 1 11 . 9 2 . 5 10 6 7 . 2 5 . 4 3 4 6 2 . 10 8 6 11 2 . 16 14 18 10 4 7 Energy Gun 15 | 1 5 . 2 . . . . . . . . 1 . 1 . . . . . . . . . . . . 1 . 2 . 2 Energy Cannon 19 | . 4 . 6 1 . 3 4 . . . . . . . . . . . . . . . . . . . . . 1 . . Ballistic Gun 4 | . 2 . . . . . . . . . . . . . . 2 . . . . . . . . . . . . . . . Ballistic Cannon 4 | . . . . . . . . . . . . . . . . . . . . . . . . . . 2 . . . . 2 Launcher 50 | . . . 1 1 . 2 3 1 1 . 1 1 . . 1 . 3 1 . 5 4 2 4 1 . 5 2 9 . 2 . Special Weapon 1 | . . . . . . . . . . . . . . . . . . . . . . . . . . . 1 . . . . Impact Weapon 6 | . . . . . . . . . 2 . 1 2 . . . . . . . . . . . . . . 1 . . . . Slashing Weapon 68 | . . . . . . . 3 5 3 . . 1 . 3 2 2 3 1 . 5 4 3 7 1 . 1 3 9 7 2 3 Piercing Weapon 14 | . . . . . . . . . . . . . . . . . . . . . . . . . . 8 6 . . . . Special Melee Weapon 2 | . . . . . . . . . 1 . . . . . . . . . . . . 1 . . . . . . . . . Unidentified Prototypes 43 | . . . 5 . . . 2 2 . . . 1 1 . 1 . . 1 . 2 . 2 . . . 9 5 1 9 2 . Corrupted Parts 1 | . . . . . . . . . . . . . . . . . . . . . . . . . . . . . . . 1 System Corruption 10 | . . . . . . . . . . . . . . . . . . . . . . . . . . . . . . . 10 Parts Lost 5 | . . . . . . . 1 . . . 1 . . 1 . . . . . . . . 1 . . . . 1 . . . Power . | . . . . . . . . . . . . . . . . . . . . . . . . . . . . . . . . Propulsion . | . . . . . . . . . . . . . . . . . . . . . . . . . . . . . . . . Utility 5 | . . . . . . . 1 . . . 1 . . 1 . . . . . . . . 1 . . . . 1 . . . Weapon . | . . . . . . . . . . . . . . . . . . . . . . . . . . . . . . . . Highest Loss Streak 1 | . . . . . . . 1 . . . 1 . . 1 . . . . . . . . 1 . . . . 1 . . . To Critical Strikes . | . . . . . . . . . . . . . . . . . . . . . . . . . . . . . . . . Average Slot Usage (%) 94 | . 96 100 95 100 100 100 97 97 100 100 98 92 96 99 99 99 100 91 93 94 95 94 93 95 95 94 94 87 89 90 90 Engine 2 | . 13 12 7 . . . . 6 11 11 11 11 11 1 . . . . . . . . . . . . . . . . . Core 2 | . . . 2 15 15 15 12 4 . . . . . 8 9 10 10 1 . . . . . . . . . . . . . Reactor 2 | . . . . . . . . . . . . . . . . . . 4 5 4 5 4 4 4 4 4 4 4 4 4 3 Wheel 2 | . 27 25 12 . . . . . . . . . . . . . . . . . . . . . . . . . . . . Flight 26 | . . . 12 30 30 30 38 35 35 35 35 32 33 31 31 30 30 30 30 29 30 29 28 28 28 27 27 26 26 26 25 Device 31 | . 13 25 22 23 23 23 23 21 23 23 21 16 18 24 26 30 30 27 28 30 30 30 34 38 38 39 39 39 39 38 38 Processor 12 | . 12 12 9 7 7 7 7 11 11 11 11 16 16 16 15 15 15 15 15 15 15 14 14 14 14 13 13 13 13 13 13 Protection 2 | . . . 7 7 7 7 . 3 5 5 5 4 5 4 5 4 5 3 5 5 5 4 1 . . . . . 3 4 4 Energy Cannon 3 | . 13 25 19 14 15 14 6 . . . . . . . . . . . . . . . . . . . . . . . . Slashing Weapon 5 | . . . . . . . 4 11 6 5 5 5 5 6 9 9 9 6 10 9 8 9 8 9 9 4 3 3 3 3 3 Naked Turns . | . . . . . . . . . . . . . . . . . . . . . . . . . . . . . . . . Heaviest Build 79 | 6 13 13 25 25 25 25 25 39 39 38 39 38 38 44 44 44 45 54 59 67 67 67 70 60 60 67 64 64 79 67 67 Greatest Support 84 | 26 26 24 31 31 31 31 41 44 48 39 39 50 38 50 44 50 50 55 60 60 60 78 78 63 78 82 79 79 79 84 84 Greatest Overweight (x) 6 | . 1 . 6 . . . . . . . . . . . . . . . . 2 1 1 1 . . 2 2 . 1 . 1 Average Overweight (x) . | . . . . . . . . . . . . . . . . . . . . . . . . . . . . . . . . Largest Inventory Capacity 6 | 3 3 3 3 3 3 3 5 5 5 5 5 5 5 5 5 5 5 5 5 5 5 5 6 6 6 6 6 6 6 6 6 Average Capacity 5 | 3 3 3 3 3 3 3 4 5 5 5 5 5 5 5 5 5 5 5 5 5 5 5 5 6 6 6 6 6 6 6 6 Most Carried 6 | 3 3 3 3 3 3 3 5 5 5 3 5 5 5 5 5 5 4 5 5 5 5 5 6 6 6 6 6 6 6 6 6 Average Carried 4 | 1 1 3 2 2 3 3 4 4 3 3 3 2 4 4 4 4 3 4 4 4 5 4 4 5 5 5 5 5 5 5 2 Final Capacity 6 | 3 3 3 3 3 3 3 5 5 5 5 5 5 5 5 5 5 5 5 5 5 5 5 6 6 6 6 6 6 6 6 6 Final Carried 6 | . 3 3 2 3 3 3 5 5 3 3 3 5 4 5 5 4 3 5 5 5 5 5 5 6 6 5 6 6 6 6 2 Class Distribution -------------------- 77% | Hacker-Sprinter 9% | Scavenger-Sprinter 6% | Scavenger-Mutant 4% | Mutant Dominant Class ---------------- Mutant | -10/Materials Scavenger-Mutant | -10/Mines Scavenger-Mutant | -9/Materials Scavenger-Sprinter | -9/Mines Scavenger-Sprinter | -9/Exiles Scavenger-Sprinter | -8/Mines Scavenger-Sprinter | -8/Materials Hacker-Sprinter | -7/Factory Hacker-Sprinter | -7/Lower Caves Hacker-Sprinter | -7/Data Miner Hacker-Sprinter | -6/Proximity Caves Hacker-Sprinter | -6/Factory Hacker-Sprinter | -6/Waste Hacker-Sprinter | -6/Factory Hacker-Sprinter | -5/Factory Hacker-Sprinter | -5/Upper Caves Hacker-Sprinter | -5/Upper Caves Hacker-Sprinter | -5/Warlord Hacker-Sprinter | -4/Proximity Caves Hacker-Sprinter | -4/Factory Hacker-Sprinter | -4/Waste Hacker-Sprinter | -4/Factory Hacker-Sprinter | -4/Extension Hacker-Sprinter | -4/Cetus Hacker-Sprinter | -4/Archives Hacker-Sprinter | -3/Research Hacker-Sprinter | -3/Quarantine Hacker-Sprinter | -2/Research Hacker-Sprinter | -2/Testing Hacker-Sprinter | -1/Access Hacker-Sprinter | -1/Command Resources | -11 -10 -10 -9 -9 -9 -8 -8 -7 -7 -7 -6 -6 -6 -6 -5 -5 -5 -5 -4 -4 -4 -4 -4 -4 -4 -3 -3 -2 -2 -1 -1 ----------- Run | Jun Mat Min Mat Min Exi Min Mat Fac Low Dat Pro Fac Was Fac Fac Upp Upp War Pro Fac Was Fac Ext Cet Arc Res Qua Res Tes Acc Com Matter Collected 7041 | 200 213 47 355 31 . 122 336 362 58 . 197 206 . 375 192 75 129 297 9 178 516 134 552 52 75 619 269 719 230 217 276 Remotely . | . . . . . . . . . . . . . . . . . . . . . . . . . . . . . . . . Salvage Created 19810 | . 452 22 1044 19 . 304 1333 1142 38 . 73 589 . 1178 740 128 185 253 70 780 1809 658 1261 30 264 2522 728 783 806 790 1809 Parts 1042 | . 28 4 92 7 . 18 101 54 5 . 3 18 . 75 30 3 16 14 6 37 2 32 66 8 11 141 38 49 41 64 79 Haulers Intercepted 27 | . . . 4 . . . 5 2 . . . 2 . 3 1 . . . . 4 . 1 1 . . 4 . . . . . Recyclers Shooed 1 | . . . 1 . . . . . . . . . . . . . . . . . . . . . . . . . . . . Parts Field Recycled . | . . . . . . . . . . . . . . . . . . . . . . . . . . . . . . . . Retrieved Matter . | . . . . . . . . . . . . . . . . . . . . . . . . . . . . . . . . Parts Self-Destructed 35 | . . . . . . . . . 4 . 10 . . . . 3 12 . 6 . . . . . . . . . . . . Prevented 4 | . . . . . . . . . . . 1 . . . . . 3 . . . . . . . . . . . . . . Kills | -11 -10 -10 -9 -9 -9 -8 -8 -7 -7 -7 -6 -6 -6 -6 -5 -5 -5 -5 -4 -4 -4 -4 -4 -4 -4 -3 -3 -2 -2 -1 -1 ------- Run | Jun Mat Min Mat Min Exi Min Mat Fac Low Dat Pro Fac Was Fac Fac Upp Upp War Pro Fac Was Fac Ext Cet Arc Res Qua Res Tes Acc Com Combat Hostiles Destroyed 326 | . 12 . 29 4 . 10 33 14 3 . 4 6 . 18 11 1 11 9 2 10 5 11 19 3 3 29 7 14 12 14 32 Melee 172 | . . . . . . . 18 10 . . 1 . . 14 8 1 2 . 2 6 . 6 10 3 3 25 7 6 11 7 32 Guns 7 | . 7 . . . . . . . . . . . . . . . . . . . . . . . . . . . . . . Cannons 46 | . 5 . 23 . . 7 11 . . . . . . . . . . . . . . . . . . . . . . . . AOE 91 | . . . 4 4 . 3 4 4 3 . 2 4 . . 3 . 9 9 . 4 5 5 9 . . 4 . 8 . 7 . Classes Destroyed 24 | . 4 1 5 . . 1 1 1 . . 1 . . 2 . . . 3 . . 1 . 1 . . . 1 2 . . . Worker 4 | . . . 1 . . . . . . . . . . . . . . . . . . . 3 . . . . . . . . Builder 8 | . . 1 . . . 1 . . . . . . . . . . . . . . . . 5 . . . 1 . . . . Tunneler 1 | . . . . . . . . . . . . . . 1 . . . . . . . . . . . . . . . . . Hauler 27 | . . . 4 . . . 5 2 . . . 2 . 3 1 . . . . 4 . 1 1 . . 4 . . . . . Recycler 5 | . . . 1 . . . . . . . . 2 . . . . . . . . . . 2 . . . . . . . . Mechanic 1 | . . . . . . . . . . . . . . 1 . . . . . . . . . . . . . . . . . Operator 17 | . 1 . . . . . 2 2 . . . . . 3 . . . . . 1 . 1 . . . 4 . . 1 1 1 Watcher 50 | . 2 . 3 . . . 1 5 . . . . . 5 1 . . . . 2 . 3 2 1 . 7 3 4 1 7 3 Swarmer 108 | . 6 . 15 4 . 4 7 4 3 . 1 4 . 3 5 . 10 . . 5 . 5 5 . . 4 1 1 . 10 11 Cutter 4 | . . . . . . . 3 . . . . . . . . . . . . . . . . . . . . . . . 1 Saboteur 2 | . . . . . . . . . . . . . . . . . . 2 . . . . . . . . . . . . . Grunt 67 | . 6 . 5 . . 3 14 4 . . 1 1 . 6 2 . . 4 . 1 . 4 4 . . 4 . 1 5 . 2 Brawler 2 | . . . . . . . . . . . 1 . . . . . . 1 . . . . . . . . . . . . . Duelist 2 | . . . 1 . . . . . . . . . . . 1 . . . . . . . . . . . . . . . . Protector 2 | . . . . . . . . . . . . . . . . . . 1 . . . . . . . . . 1 . . . Researcher 2 | . . . . . . . . . . . . . . . . . . . . . . . . . . . 2 . . . . Sentry 53 | . . . 8 . . . 8 5 . . . 1 . 4 3 1 1 . 1 2 . 1 6 . 3 4 3 . . . 2 Demolisher 1 | . . . . . . . . . . . . . . . . . . 1 . . . . . . . . . . . . . Hunter 27 | . . . . . . 3 1 . . . . . . 3 . . . . . . . . 2 . . 5 . 4 4 . 5 Programmer 36 | . . . . . . . . 1 . . 1 . . 2 . . . . 1 2 . 1 . . . 10 3 3 3 4 5 Behemoth 4 | . . . . . . . . . . . . . . . . . . . . . . . 2 . . 2 . . . . . Compactor 5 | . . . . . . . . . . . . . . . . . . . . . 5 . . . . . . . . . . Cetus Guard 3 | . . . . . . . . . . . . . . . . . . . . . . . . 3 . . . . . . . M Guard 2 | . . . . . . . . . . . . . . . . . . . . . . . . . . . . . . . 2 Combat Programmer 2 | . . . . . . . . . . . . . . . . . . . . . . . . . . . . . . . 2 Striker 2 | . . . . . . . . . . . . . . . . . . . . . . . . . . . . 2 . . . Executioner 2 | . . . . . . . . . . . . . . . . . . . . . . . . . . . . 2 . . . Butcher 2 | . . . . . . . . . . . . . . . . . . . . . . . . . . . . 2 . . . Best Kill Streak 13 | . 7 1 7 4 . 5 13 4 3 . 3 4 . 4 8 1 5 5 1 8 4 5 13 4 3 4 3 3 6 6 6 Combat Bots Only 8 | . 6 . 7 4 . 4 8 4 3 . 3 4 . 4 8 1 5 5 1 6 4 5 5 3 3 4 3 3 5 6 5 Max Kills in Single Turn 5 | . 2 1 3 4 . 2 2 3 2 . 1 2 . 1 2 1 2 3 1 3 2 5 5 1 1 2 1 2 1 3 1 Gunslinging 1 | . 1 . . . . . . . . . . . . . . . . . . . . . . . . . . . . . . Exploded 5 | . . . 2 4 . 2 2 3 2 . 1 2 . . 2 . 2 3 . 3 2 5 5 . . 2 . 2 . 3 . Melee 1 | . . . . . . . 1 1 . . 1 . . 1 1 1 1 . 1 1 . 1 1 1 1 1 1 1 1 1 1 Uniques/NPCs Destroyed 2 | . . . . . . . . . . . . . . . . . . . . . . . . . . . . . . . 2 MAIN.C Shell (-1/Command) MAIN.C (-1/Command) Combat | -11 -10 -10 -9 -9 -9 -8 -8 -7 -7 -7 -6 -6 -6 -6 -5 -5 -5 -5 -4 -4 -4 -4 -4 -4 -4 -3 -3 -2 -2 -1 -1 -------- Run | Jun Mat Min Mat Min Exi Min Mat Fac Low Dat Pro Fac Was Fac Fac Upp Upp War Pro Fac Was Fac Ext Cet Arc Res Qua Res Tes Acc Com Damage Taken 12435 | . 354 171 897 . . 395 1320 553 31 . 631 160 . 751 197 . 210 38 51 223 . 515 1102 80 60 773 222 514 370 199 2618 Core 9349 | . 285 143 697 . . 284 1012 422 18 . 405 102 . 532 127 . 163 24 51 152 . 362 721 67 51 623 180 425 269 157 2077 Absorbed by Shields 1665 | . . . . . . . . . . . . . . . . . . . . . . . 62 29 22 167 71 185 130 69 930 Redirected to Core 7516 | . 217 102 550 . . 172 754 355 18 . 374 85 . 371 127 . 140 8 . 108 . 300 597 48 30 510 144 333 269 122 1782 Regen/Repaired (Parts) 406 | . . . . . . . . 12 . . . . . 16 . . . 3 . . . . . . . . . 46 26 4 299 Core Remaining (%) 90 | 100 . 70 . . . 97 76 . . . 68 . . 100 . . . . 93 . . . . . 100 . 98 . 98 . 100 Volleys Fired 290 | . 39 5 71 1 . 26 40 3 4 . 5 4 . . 2 1 6 20 . 3 16 1 12 1 . 4 . 20 3 3 . Largest 2 | . 2 2 2 2 . 2 2 1 1 . 1 1 . . 1 1 1 1 . 1 1 1 1 1 . 1 . 1 1 1 . Hottest 240 | . 120 120 136 101 . 136 148 33 33 . 33 33 . . 33 24 33 33 . 49 49 49 49 49 . 80 . 80 240 80 . Shots Fired 465 | . 78 10 142 2 . 52 75 3 3 . 5 4 . . 2 1 6 20 . 3 16 1 11 1 . 4 . 20 3 3 . Gun 44 | . 40 . . . . . . . . . . . . . . 1 . . . . . . . . . . . . 3 . . Cannon 311 | . 38 10 140 1 . 50 72 . . . . . . . . . . . . . . . . . . . . . . . . Launcher 110 | . . . 2 1 . 2 3 3 3 . 5 4 . . 2 . 6 20 . 3 16 1 11 1 . 4 . 20 . 3 . Special . | . . . . . . . . . . . . . . . . . . . . . . . . . . . . . . . . Kinetic 12 | . 11 . . . . . . . . . . . . . . 1 . . . . . . . . . . . . . . . Thermal 335 | . 60 10 140 1 . 50 72 . . . . . . . . . . . . . . . . . . . . . 2 . . Explosive 109 | . . . 2 1 . 2 3 3 3 . 5 4 . . 2 . 6 20 . 3 16 1 11 1 . 3 . 20 . 3 . Electromagnetic 9 | . 7 . . . . . . . . . . . . . . . . . . . . . . . . 1 . . 1 . . Robot Hit Streak 15 | . 6 7 15 . . 6 14 . 7 . 1 . . . . . 3 2 . . 11 12 1 2 . . . 13 . . . Robot Miss Streak 5 | . 3 2 4 . . 5 2 . 1 . 2 1 . . . . 2 5 . . . . 1 . . . . . . . . Penetration Max . | . . . . . . . . . . . . . . . . . . . . . . . . . . . . . . . . Secondary Targets 2 | . 2 . . . . . . . . . . . . . . . . . . . . . . . . . . . . . . Max Gunslinging Chain 1 | . 1 . . . . . . . . . . . . . . . . . . . . . . . . . . . . . . Shots Hit Robots 943 | . 40 6 89 . . 31 90 49 1 . 9 14 . 72 24 1 8 4 11 37 11 40 51 7 8 111 34 29 33 20 113 Core Hits 604 | . 17 1 41 4 . 18 47 25 4 . 8 7 . 32 17 1 18 61 3 20 7 22 54 10 5 52 13 44 12 16 45 Critical Kills . | . . . . . . . . . . . . . . . . . . . . . . . . . . . . . . . . Critical Parts Destroyed 6 | . . . . . . . . . . . 2 4 . . . . . . . . . . . . . . . . . . . Critical Strikes 64 | . 2 . . . . . 1 6 . . 2 5 . 3 2 . 1 . 4 3 . 4 9 . . 12 2 2 2 . 4 Burn 1 | . 1 . . . . . . . . . . . . . . . . . . . . . . . . . . . . . . Corrupt 1 | . 1 . . . . . . . . . . . . . . . . . . . . . . . . . . . . . . Smash 6 | . . . . . . . . . . . 2 4 . . . . . . . . . . . . . . . . . . . Sever 44 | . . . . . . . 1 6 . . . 1 . 3 2 . 1 . 4 3 . 4 9 . . 2 . 2 2 . 4 Impale 12 | . . . . . . . . . . . . . . . . . . . . . . . . . . 10 2 . . . . Melee Attacks 1062 | . . . . . . . 58 78 . . 18 22 . 101 34 1 7 . 11 62 . 67 57 8 8 189 62 31 48 62 138 Kinetic 3 | . . . . . . . . . . . . . . . . . . . . . . . . . . . 3 . . . . Impact 53 | . . . . . . . . . . . 17 14 . 22 . . . . . . . . . . . . . . . . . Slashing 846 | . . . . . . . 58 78 . . 1 8 . 79 34 1 7 . 11 62 . 67 57 8 8 69 19 31 48 62 138 Piercing 160 | . . . . . . . . . . . . . . . . . . . . . . . . . . 120 40 . . . . Sneak Attacks 75 | . . . . . . . 6 6 . . . 8 . 14 1 1 . . 1 9 . 3 . . . 15 3 1 1 4 2 Combat Hostiles 31 | . . . . . . . 2 3 . . . 2 . 5 . 1 . . 1 2 . 2 . . . 9 . 1 1 1 1 Follow-up Attacks 98 | . . . . . . . 5 6 . . 1 2 . 12 3 . 1 . 1 7 . 12 9 2 2 29 6 . . . . Damage Inflicted 67520 | . 615 106 2007 177 . 825 3067 2615 233 . 697 1299 . 4037 1289 99 1096 2127 529 2362 2986 2428 5412 611 432 7829 2258 4472 3293 3273 11346 Guns 264 | . 264 . . . . . . . . . . . . . . . . . . . . . . . . . . . . . . Cannons 3798 | . 351 106 1683 . . 635 1023 . . . . . . . . . . . . . . . . . . . . . . . . Explosions 15923 | . . . 324 177 . 190 355 256 233 . 329 290 . . 225 . 857 2127 . 302 2986 566 2740 288 . 344 . 2613 . 721 . Melee 47535 | . . . . . . . 1689 2359 . . 368 1009 . 4037 1064 99 239 . 529 2060 . 1862 2672 323 432 7485 2258 1859 3293 2552 11346 Ramming . | . . . . . . . . . . . . . . . . . . . . . . . . . . . . . . . . Kinetic 185 | . 89 . . . . . . . . . . . . . . . . . . . . . . . . . 96 . . . . Thermal 4054 | . 458 106 1795 . . 635 1023 . . . . . . . . . . . . . . . 37 . . . . . . . . Explosive 15774 | . . . 212 177 . 190 355 256 233 . 329 290 . . 225 . 857 2127 . 302 2986 566 2703 288 . 344 . 2613 . 721 . Electromagnetic 68 | . 68 . . . . . . . . . . . . . . . . . . . . . . . . . . . . . . Impact 1419 | . . . . . . . . . . . 330 529 . 560 . . . . . . . . . . . . . . . . . Slashing 39146 | . . . . . . . 1689 2359 . . 38 480 . 3477 1064 99 239 . 529 2060 . 1862 2672 323 432 2307 466 1859 3293 2552 11346 Piercing 6874 | . . . . . . . . . . . . . . . . . . . . . . . . . . 5178 1696 . . . . Highest Corruption 15 | . . . . . . . 2 1 1 1 3 . 7 15 1 1 1 . . 3 3 3 3 3 3 4 6 . . . 11 Average Corruption 3 | . . . . . . . 2 1 1 1 2 . 7 10 1 1 1 . . 3 3 3 3 3 3 2 4 . . . 3 Corruption Purged 12 | . . . . . . . . . . . . . . . . . 1 . . . . . . . . . . . . . 11 Corruption Blocked 8 | . . . . . . . . . . . . . . . . . . . . . . . . . . . . 8 . . . Effects 181 | . . . . . . . 2 6 4 1 2 . 3 46 . 2 1 . . 6 2 8 14 3 34 17 19 . . . 11 Message Errors 33 | . . . . . . . 1 . 2 . . . 3 7 . 1 . . . 1 2 3 . 1 4 4 3 . . . 1 Matter Fused 53 | . . . . . . . 1 3 1 . 1 . . 15 . . . . . 1 . 3 6 2 9 3 6 . . . 2 Heat Flow Errors 28 | . . . . . . . . 1 . . . . . 5 . . 1 . . 1 . . 2 . 9 4 3 . . . 2 Energy Discharges 21 | . . . . . . . . . . . . . . 7 . . . . . . . . 2 . 7 2 1 . . . 2 Parts Rejected 1 | . . . . . . . . . . . . . . . . . . . . . . . . . . . . . . . 1 Parts Fused 3 | . . . . . . . . . . . . . . 1 . . . . . . . . . . 1 . 1 . . . . Data Loss (minor) 19 | . . . . . . . . 2 . 1 . . . 2 . 1 . . . . . 2 . . 2 2 4 . . . 3 Data Loss (major) 12 | . . . . . . . . . . . 1 . . 3 . . . . . 1 . . 3 . 2 2 . . . . . Alerts 6 | . . . . . . . . . . . . . . 3 . . . . . 2 . . . . . . 1 . . . . Misdirections 3 | . . . . . . . . . . . . . . 3 . . . . . . . . . . . . . . . . . Weapon Failures 2 | . . . . . . . . . 1 . . . . . . . . . . . . . 1 . . . . . . . . Overload Shots 1 | . . . . . . . . . . . . . . . . . . . . . . . . . . . . . 1 . . Overflow Damage 6290 | . . . . 5 . 4 78 172 11 . 191 385 . 304 23 . 55 19 14 128 . 163 138 . . 1199 480 542 477 1060 842 Projectiles 1 | . . . . . . 1 . . . . . . . . . . . . . . . . . . . . . . . . . Explosions 301 | . . . . 5 . 3 40 5 11 . . 17 . . 5 . 35 19 . 6 . 2 128 . . . . 15 . 10 . Melee 5988 | . . . . . . . 38 167 . . 191 368 . 304 18 . 20 . 14 122 . 161 10 . . 1199 480 527 477 1050 842 Knockbacks 4 | . . . . . . . . . . . 2 1 . 1 . . . . . . . . . . . . . . . . . Impact 4 | . . . . . . . . . . . 2 1 . 1 . . . . . . . . . . . . . . . . . Kinetic . | . . . . . . . . . . . . . . . . . . . . . . . . . . . . . . . . Secondary . | . . . . . . . . . . . . . . . . . . . . . . . . . . . . . . . . Self-Inflicted Damage 382 | . . . . . . 33 48 9 . . . . . . . . 46 1 . . . . 96 . . . . . . . 149 Shots 8 | . . . . . . 1 1 1 . . . . . . . . 2 1 . . . . 1 . . . . . . . 1 Rammed . | . . . . . . . . . . . . . . . . . . . . . . . . . . . . . . . . Targets Rammed . | . . . . . . . . . . . . . . . . . . . . . . . . . . . . . . . . Kicked . | . . . . . . . . . . . . . . . . . . . . . . . . . . . . . . . . Crushed . | . . . . . . . . . . . . . . . . . . . . . . . . . . . . . . . . Highest Temperature 497 | . 324 . 497 9 . 378 99 217 37 1 7 18 . 268 7 27 235 5 . 242 1 238 217 . 259 370 211 283 180 264 301 Average Temperature 72 | . 111 . 65 6 . 126 29 31 3 1 1 6 . 53 5 19 180 5 . 98 1 169 68 . 122 132 85 34 71 105 138 Received Heat Transfer 1791 | . 123 . 222 . . 108 459 228 . . 66 18 . 105 66 . . 9 9 48 . 96 108 6 6 30 12 . 6 . 66 Effects 17 | . 1 . 3 . . 3 . . . . . . . . . . 2 . . . . . . . . 5 . . . . 3 Shutdowns 4 | . . . 2 . . 1 . . . . . . . . . . . . . . . . . . . 1 . . . . . Energy Bleed 5 | . 1 . . . . 2 . . . . . . . . . . . . . . . . . . . 1 . . . . 1 Interference 8 | . . . 1 . . . . . . . . . . . . . 2 . . . . . . . . 3 . . . . 2 Siege Activations . | . . . . . . . . . . . . . . . . . . . . . . . . . . . . . . . . Robots Corrupted . | . . . . . . . . . . . . . . . . . . . . . . . . . . . . . . . . Combat Hostiles . | . . . . . . . . . . . . . . . . . . . . . . . . . . . . . . . . Parts Fried 14 | . . . . . . . . . . . 1 5 . 6 . . . . . . . . . . . . . 1 1 . . Impact Corruptions 16 | . . . . . . . . . . . 7 5 . 4 . . . . . . . . . . . . . . . . . Robots Melted 2 | . . . 2 . . . . . . . . . . . . . . . . . . . . . . . . . . . . Combat Hostiles 2 | . . . 2 . . . . . . . . . . . . . . . . . . . . . . . . . . . . Parts Melted 16 | . 2 . 9 . . 3 2 . . . . . . . . . . . . . . . . . . . . . . . . Heat Transferred 7786 | . 1087 222 3430 . . 1147 1850 . . . . . . . . . . . . . . . 50 . . . . . . . . Parts Sabotaged . | . . . . . . . . . . . . . . . . . . . . . . . . . . . . . . . . Parts Stolen . | . . . . . . . . . . . . . . . . . . . . . . . . . . . . . . . . Parts Stripped . | . . . . . . . . . . . . . . . . . . . . . . . . . . . . . . . . Power Chain Reactions 2 | . . . . . . . . . . . . . . . . . . . . . . . 2 . . . . . . . . Missiles Intercepted . | . . . . . . . . . . . . . . . . . . . . . . . . . . . . . . . . Alert | -11 -10 -10 -9 -9 -9 -8 -8 -7 -7 -7 -6 -6 -6 -6 -5 -5 -5 -5 -4 -4 -4 -4 -4 -4 -4 -3 -3 -2 -2 -1 -1 ------- Run | Jun Mat Min Mat Min Exi Min Mat Fac Low Dat Pro Fac Was Fac Fac Upp Upp War Pro Fac Was Fac Ext Cet Arc Res Qua Res Tes Acc Com Peak Influence 1783 | . 218 29 683 305 . 273 801 1031 . . . 949 233 637 754 . . . . 546 356 745 1376 855 468 1097 987 917 907 1347 1783 Initial 848 | . . 24 . 204 . . 39 364 . . . 763 188 163 311 . . . . 31 128 249 364 686 342 . 616 470 515 434 848 Average 530 | . 109 19 316 273 . 161 353 659 . . . 787 209 389 459 . . . . 362 302 531 804 816 191 518 780 757 686 943 1527 Maximum Alert Level 5 | . 1 . 2 1 . 1 3 3 . . . 3 1 2 3 . . . . 2 1 3 4 3 2 3 3 3 3 4 5 Low Security (%) 20 | 100 98 100 35 . . 62 25 . . . . . 23 7 . . . . . 7 12 . . . 55 11 . . . . . Level 1 19 | . 1 . 27 100 . 37 37 9 . . . . 76 50 39 . . . . 58 87 11 2 . 23 24 . . . . . Level 2 29 | . . . 36 . . . 28 56 . . . 31 . 41 51 . . . . 33 . 82 51 16 21 35 17 38 59 26 . Level 3 17 | . . . . . . . 7 33 . . . 68 . . 8 . . . . . . 5 17 83 . 27 82 61 40 28 4 Level 4 5 | . . . . . . . . . . . . . . . . . . . . . . . 28 . . . . . . 45 21 Level 5 7 | . . . . . . . . . . . . . . . . . . . . . . . . . . . . . . . 74 High Security . | . . . . . . . . . . . . . . . . . . . . . . . . . . . . . . . . Max Security . | . . . . . . . . . . . . . . . . . . . . . . . . . . . . . . . . Squads Dispatched 71 | . 2 . 5 . . . 2 6 . . 1 1 . 6 2 . . . . 2 . 4 2 . . 10 5 1 7 7 8 Investigation 25 | . 1 . 2 . . . 1 2 . . . . . 3 1 . . . . . . 1 . . . 5 2 1 2 2 2 Extermination 11 | . . . . . . . . 1 . . . . . 1 . . . . . . . 1 . . . 3 2 . 1 1 1 Reinforcement 23 | . 1 . 2 . . . 1 2 . . . 1 . 2 . . . . . 2 . . 1 . . 1 1 . 3 2 4 Assault 12 | . . . 1 . . . . 1 . . 1 . . . 1 . . . . . . 2 1 . . 1 . . 1 2 1 Garrison . | . . . . . . . . . . . . . . . . . . . . . . . . . . . . . . . . Intercept . | . . . . . . . . . . . . . . . . . . . . . . . . . . . . . . . . Searches Triggered . | . . . . . . . . . . . . . . . . . . . . . . . . . . . . . . . . Data Miner Redirects 14 | . . . . . . . . . . . . . . . . . . . . . . 1 1 . . 4 1 . 2 3 2 Construction Impeded 3 | . . . . . . . . . . . . 1 . . . . . . . . . . 1 . . . . . . 1 . Haulers Reinforced 5 | . . . . . . . . 1 . . . . . 1 . . . . . 2 . . . . . 1 . . . . . Active Scanning Responses . | . . . . . . . . . . . . . . . . . . . . . . . . . . . . . . . . Cargo Convoy Interrupts . | . . . . . . . . . . . . . . . . . . . . . . . . . . . . . . . . Stealth | -11 -10 -10 -9 -9 -9 -8 -8 -7 -7 -7 -6 -6 -6 -6 -5 -5 -5 -5 -4 -4 -4 -4 -4 -4 -4 -3 -3 -2 -2 -1 -1 --------- Run | Jun Mat Min Mat Min Exi Min Mat Fac Low Dat Pro Fac Was Fac Fac Upp Upp War Pro Fac Was Fac Ext Cet Arc Res Qua Res Tes Acc Com Distress Signals 39 | . 1 . 4 . . . 2 2 . . 2 . . . . . . 1 . . . 1 1 1 . 1 1 3 2 1 16 Communications Jammed . | . . . . . . . . . . . . . . . . . . . . . . . . . . . . . . . . Distress Signals . | . . . . . . . . . . . . . . . . . . . . . . . . . . . . . . . . Times Spotted 573 | . 19 3 34 2 . 10 43 33 3 . 21 6 5 25 18 . 11 26 2 13 6 35 25 5 4 55 28 43 17 30 51 Peak Tracking Total 15 | . 6 3 5 4 . 4 9 5 3 . 9 4 5 4 5 . 4 8 1 5 3 11 6 5 2 10 8 9 6 15 7 Tactical Retreats 40 | . . 1 1 . . . 2 4 . . 1 . . 1 1 . . . . . . 6 . . . 7 5 . 1 7 3 Traps | -11 -10 -10 -9 -9 -9 -8 -8 -7 -7 -7 -6 -6 -6 -6 -5 -5 -5 -5 -4 -4 -4 -4 -4 -4 -4 -3 -3 -2 -2 -1 -1 ------- Run | Jun Mat Min Mat Min Exi Min Mat Fac Low Dat Pro Fac Was Fac Fac Upp Upp War Pro Fac Was Fac Ext Cet Arc Res Qua Res Tes Acc Com Traps Triggered 23 | . 1 . 2 . . . 1 1 . . . 1 . 3 1 . . . . 1 . . 3 . . 1 1 . 3 2 2 Indirectly . | . . . . . . . . . . . . . . . . . . . . . . . . . . . . . . . . Trap Hack Attempts . | . . . . . . . . . . . . . . . . . . . . . . . . . . . . . . . . Triggered . | . . . . . . . . . . . . . . . . . . . . . . . . . . . . . . . . Disarmed . | . . . . . . . . . . . . . . . . . . . . . . . . . . . . . . . . Reprogrammed . | . . . . . . . . . . . . . . . . . . . . . . . . . . . . . . . . Reused . | . . . . . . . . . . . . . . . . . . . . . . . . . . . . . . . . Traps Extracted . | . . . . . . . . . . . . . . . . . . . . . . . . . . . . . . . . Installed . | . . . . . . . . . . . . . . . . . . . . . . . . . . . . . . . . Triggered 9 | . . . . . . . . . . . . . . . . . 1 8 . . . . . . . . . . . . . Most Traps Carried 1 | . . . . . . . . . . . . . . . . . 1 . . . . . . . . . . . . . . Machines | -11 -10 -10 -9 -9 -9 -8 -8 -7 -7 -7 -6 -6 -6 -6 -5 -5 -5 -5 -4 -4 -4 -4 -4 -4 -4 -3 -3 -2 -2 -1 -1 ---------- Run | Jun Mat Min Mat Min Exi Min Mat Fac Low Dat Pro Fac Was Fac Fac Upp Upp War Pro Fac Was Fac Ext Cet Arc Res Qua Res Tes Acc Com Machines Disabled 33 | . 4 . 4 . . . 2 . . . 1 1 . . . . . . . 1 . 2 6 . 1 . 6 1 1 1 2 Max in Single Turn 2 | . 2 . 2 . . . 2 . . . . 1 . . . . . . . 1 . 2 2 . . . 1 1 1 1 2 Garrison Access 11 | . . . . . . . 1 1 . . . . . 1 . . . . . 1 . . . . . 2 . 2 1 2 . Phase Generator 1 | . . . . . . . . . . . . . . . . . . . . . . . . . . . . . . . 1 Energy Cycler 1 | . . . . . . . . . . . . . . . . . . . . . . . 1 . . . . . . . . Machines Repaired . | . . . . . . . . . . . . . . . . . . . . . . . . . . . . . . . . Machines Sabotaged . | . . . . . . . . . . . . . . . . . . . . . . . . . . . . . . . . Overloaded Fab Kills . | . . . . . . . . . . . . . . . . . . . . . . . . . . . . . . . . Hacking | -11 -10 -10 -9 -9 -9 -8 -8 -7 -7 -7 -6 -6 -6 -6 -5 -5 -5 -5 -4 -4 -4 -4 -4 -4 -4 -3 -3 -2 -2 -1 -1 --------- Run | Jun Mat Min Mat Min Exi Min Mat Fac Low Dat Pro Fac Was Fac Fac Upp Upp War Pro Fac Was Fac Ext Cet Arc Res Qua Res Tes Acc Com Machines Accessed 118 | . 2 . 5 . 1 . 9 13 1 4 . 5 . 10 5 1 . . 1 4 . 8 2 2 . 20 8 1 6 6 4 Terminals 75 | . 2 . 5 . . . 7 7 . . . 3 . 5 2 . . . 1 2 . 5 2 2 . 12 8 . 4 4 4 Fabricators 12 | . . . . . . . . 2 . . . 1 . 2 1 . . . . 1 . 1 . . . 3 . . 1 . . Repair Stations 6 | . . . . . . . . 2 . . . . . 1 1 . . . . . . 2 . . . . . . . . . Recycling Units . | . . . . . . . . . . . . . . . . . . . . . . . . . . . . . . . . Scanalyzers 8 | . . . . . . . 1 1 . . . 1 . 1 1 . . . . . . . . . . 3 . . . . . Garrison Access 10 | . . . . . . . 1 1 . . . . . 1 . . . . . 1 . . . . . 2 . 1 1 2 . Total Hacks 411 | . 5 . 18 . 1 . 23 43 1 31 . 22 . 30 35 1 . . 6 19 . 27 5 7 . 68 23 2 16 19 9 Successful 227 | . 4 . 7 . 1 . 11 20 1 31 . 12 . 18 22 1 . . 6 9 . 11 3 5 . 34 10 . 8 8 5 Failed 184 | . 1 . 11 . . . 12 23 . . . 10 . 12 13 . . . . 10 . 16 2 2 . 34 13 2 8 11 4 Catastrophic 28 | . . . . . . . 1 4 . . . 1 . 3 4 . . . . 1 . 2 . . . 3 1 1 1 4 2 Database Lockouts . | . . . . . . . . . . . . . . . . . . . . . . . . . . . . . . . . Manual 210 | . 5 . 18 . 1 . 17 21 . . . 16 . 17 12 . . 1 . 13 . 11 2 . . 31 16 . 9 15 5 Terminals 267 | . 5 . 18 . . . 20 25 . . . 17 . 18 12 . . . 6 11 . 16 5 7 . 45 23 . 14 16 9 Fabricators 38 | . . . . . . . . 5 . . . 3 . 6 3 . . . . 4 . 6 . . . 10 . . 1 . . Repair Stations 19 | . . . . . . . . 8 . . . . . 2 4 . . . . . . 5 . . . . . . . . . Recycling Units . | . . . . . . . . . . . . . . . . . . . . . . . . . . . . . . . . Scanalyzers 36 | . . . . . . . 2 3 . . . 2 . 2 16 . . . . . . . . . . 11 . . . . . Garrison Access 17 | . . . . . . . 1 2 . . . . . 2 . . . . . 4 . . . . . 2 . 2 1 3 . Terminal Hacks 112 | . 3 . 5 . 1 . 5 5 1 31 . 6 . 4 1 1 . . 6 4 . 3 2 5 . 13 7 . 3 3 3 Record 34 | . . . . . 1 . . . . 11 . . . . . . . . 6 . . 1 1 4 . 5 2 . 1 1 1 Part Schematic 14 | . . . . . . . . . . 11 . . . 1 . . . . . 2 . . . . . . . . . . . Robot Schematic 6 | . . . . . . . . . . 6 . . . . . . . . . . . . . . . . . . . . . Robot Analysis 5 | . . . . . . . . 2 . . . . . . . . . . . . . . . . . 2 1 . . . . Prototype ID Bank 4 | . 1 . . . . . . . . 3 . . . . . . . . . . . . . . . . . . . . . Open Door 6 | . . . . . . . . . 1 . . . . . . 1 . . . . . 1 . 1 . . 1 . . . 1 Branch Access Points 2 | . . . 1 . . . . . . . . . . . . . . . . . . . . . . . . . . 1 . Terminal Index 10 | . 1 . 1 . . . 1 1 . . . 1 . 1 . . . . . 1 . 1 1 . . . . . 1 . . Scanalyzer Index 3 | . . . . . . . . . . . . . . 1 . . . . . 1 . . . . . 1 . . . . . Alert Level 17 | . . . 2 . . . 2 1 . . . 2 . . 1 . . . . . . . . . . 4 3 . 1 1 . Unreport Threat 6 | . . . 1 . . . 1 . . . . 3 . . . . . . . . . . . . . 1 . . . . . Hauler Manifests 4 | . 1 . . . . . 1 1 . . . . . 1 . . . . . . . . . . . . . . . . . Disengage Seal 1 | . . . . . . . . . . . . . . . . . . . . . . . . . . . . . . . 1 Fabricator Hacks 19 | . . . . . . . . 2 . . . 1 . 5 1 . . . . 1 . 3 . . . 5 . . 1 . . Network Status 10 | . . . . . . . . 2 . . . 1 . 1 1 . . . . 1 . 1 . . . 2 . . 1 . . Load Schematic 5 | . . . . . . . . . . . . . . 2 . . . . . . . 1 . . . 2 . . . . . Build 4 | . . . . . . . . . . . . . . 2 . . . . . . . 1 . . . 1 . . . . . Repair Station Hacks 10 | . . . . . . . . 5 . . . . . 2 2 . . . . . . 1 . . . . . . . . . Scan Component 6 | . . . . . . . . 3 . . . . . 1 1 . . . . . . 1 . . . . . . . . . Repair 4 | . . . . . . . . 2 . . . . . 1 1 . . . . . . . . . . . . . . . . Recycling Unit Hacks . | . . . . . . . . . . . . . . . . . . . . . . . . . . . . . . . . Scanalyzer 29 | . . . . . . . 2 2 . . . 2 . 2 16 . . . . . . . . . . 5 . . . . . Insert Component 15 | . . . . . . . 1 1 . . . 1 . 1 8 . . . . . . . . . . 3 . . . . . Analyze 14 | . . . . . . . 1 1 . . . 1 . 1 8 . . . . . . . . . . 2 . . . . . Garrison Access Hacks 9 | . . . . . . . 1 1 . . . . . 1 . . . . . 1 . . . . . 2 . . 1 2 . Seal Access 9 | . . . . . . . 1 1 . . . . . 1 . . . . . 1 . . . . . 2 . . 1 2 . Unauthorized Hacks 48 | . 1 . 2 . . . 3 5 . . . 3 . 4 2 . . . . 3 . 4 1 . . 9 3 . 3 3 2 Terminals 43 | . 1 . 2 . . . 3 4 . . . 2 . 4 2 . . . . 2 . 3 1 . . 8 3 . 3 3 2 Botnet 43 | . 1 . 2 . . . 3 4 . . . 2 . 4 2 . . . . 2 . 3 1 . . 8 3 . 3 3 2 Fabricators 5 | . . . . . . . . 1 . . . 1 . . . . . . . 1 . 1 . . . 1 . . . . . Prioritize 2 | . . . . . . . . . . . . . . . . . . . . . . 1 . . . 1 . . . . . Haulers 3 | . . . . . . . . 1 . . . 1 . . . . . . . 1 . . . . . . . . . . . Repair Stations . | . . . . . . . . . . . . . . . . . . . . . . . . . . . . . . . . Recycling Units . | . . . . . . . . . . . . . . . . . . . . . . . . . . . . . . . . Scanalyzers . | . . . . . . . . . . . . . . . . . . . . . . . . . . . . . . . . Garrison Access . | . . . . . . . . . . . . . . . . . . . . . . . . . . . . . . . . Data Cores Recovered 12 | . . . . . . . 2 1 . . . . . 1 . . . . . 1 . 1 . . . 4 . . 1 1 . Used 5 | . . . . . . . 2 1 . . . . . . . . . . . . . . . . . 1 . . 1 . . Hacking Detections 86 | . 1 . 5 . . . 8 11 . . . 4 . 8 3 . . . 1 4 . 7 1 . . 14 7 1 5 4 2 Full Trace Events 18 | . . . . . . . 1 2 . . . . . 3 1 . . . . . . 1 . . . 5 2 1 1 1 . Feedback Events 2 | . . . . . . . . 1 . . . . . . 1 . . . . . . . . . . . . . . . . Corruption 2 | . . . . . . . . 1 . . . . . . 1 . . . . . . . . . . . . . . . . Feedback Blocked . | . . . . . . . . . . . . . . . . . . . . . . . . . . . . . . . . Robot Schematics Acquired 6 | . . . . . . . . . . 6 . . . . . . . . . . . . . . . . . . . . . Robots Built . | . . . . . . . . . . . . . . . . . . . . . . . . . . . . . . . . Authchips . | . . . . . . . . . . . . . . . . . . . . . . . . . . . . . . . . Time . | . . . . . . . . . . . . . . . . . . . . . . . . . . . . . . . . Total Robot Build Rating . | . . . . . . . . . . . . . . . . . . . . . . . . . . . . . . . . Part Schematics Acquired 30 | . . . . . . . 1 1 . 11 . 1 . 2 8 . . . . 2 . . . . . 2 2 . . . . Parts Built 5 | . . . . . . . . . . . . . . 3 . . . . . . . 1 . . . 1 . . . . . Authchips . | . . . . . . . . . . . . . . . . . . . . . . . . . . . . . . . . Time 273 | . . . . . . . . . . . . . . 179 . . . . . . . 38 . . . 56 . . . . . Total Part Build Rating 25 | . . . . . . . . . . . . . . 14 . . . . . . . 5 . . . 6 . . . . . Parts Repaired 4 | . . . . . . . . 2 . . . . . 1 1 . . . . . . . . . . . . . . . . Time 142 | . . . . . . . . 45 . . . . . 62 35 . . . . . . . . . . . . . . . . Parts Recycled . | . . . . . . . . . . . . . . . . . . . . . . . . . . . . . . . . Recycled Matter . | . . . . . . . . . . . . . . . . . . . . . . . . . . . . . . . . Retrieved Matter . | . . . . . . . . . . . . . . . . . . . . . . . . . . . . . . . . Retrieved Components . | . . . . . . . . . . . . . . . . . . . . . . . . . . . . . . . . Parts Scanalyzed 14 | . . . . . . . 1 1 . . . 1 . 1 8 . . . . . . . . . . 2 . . . . . Part Schematics Acquired 14 | . . . . . . . 1 1 . . . 1 . 1 8 . . . . . . . . . . 2 . . . . . Parts Damaged . | . . . . . . . . . . . . . . . . . . . . . . . . . . . . . . . . Bothacking | -11 -10 -10 -9 -9 -9 -8 -8 -7 -7 -7 -6 -6 -6 -6 -5 -5 -5 -5 -4 -4 -4 -4 -4 -4 -4 -3 -3 -2 -2 -1 -1 ------------ Run | Jun Mat Min Mat Min Exi Min Mat Fac Low Dat Pro Fac Was Fac Fac Upp Upp War Pro Fac Was Fac Ext Cet Arc Res Qua Res Tes Acc Com Used RIF Installer . | . . . . . . . . . . . . . . . . . . . . . . . . . . . . . . . . Robots Hacked . | . . . . . . . . . . . . . . . . . . . . . . . . . . . . . . . . Non-combat . | . . . . . . . . . . . . . . . . . . . . . . . . . . . . . . . . Combat . | . . . . . . . . . . . . . . . . . . . . . . . . . . . . . . . . Robot Hacks Applied . | . . . . . . . . . . . . . . . . . . . . . . . . . . . . . . . . Relay Couplers Released 5 | . . . . . . . . . . . . . . . . . . . . . . 1 . . . . . 4 . . . Machine Destruction 2 | . . . . . . . . . . . . . . . . . . . . . . . . . . . . 2 . . . Programmers 3 | . . . . . . . . . . . . . . . . . . . . . . 1 . . . . . 2 . . . Fabnet Peak Effective % . | . . . . . . . . . . . . . . . . . . . . . . . . . . . . . . . . Robots Rewired . | . . . . . . . . . . . . . . . . . . . . . . . . . . . . . . . . Allies Hacked . | . . . . . . . . . . . . . . . . . . . . . . . . . . . . . . . . Hacks Repelled . | . . . . . . . . . . . . . . . . . . . . . . . . . . . . . . . . Allies | -11 -10 -10 -9 -9 -9 -8 -8 -7 -7 -7 -6 -6 -6 -6 -5 -5 -5 -5 -4 -4 -4 -4 -4 -4 -4 -3 -3 -2 -2 -1 -1 -------- Run | Jun Mat Min Mat Min Exi Min Mat Fac Low Dat Pro Fac Was Fac Fac Upp Upp War Pro Fac Was Fac Ext Cet Arc Res Qua Res Tes Acc Com Total Allies 14 | . . 3 . . . . . . . . 1 . . . . . . . . . 1 . 9 . . . . . . . . Largest Group 9 | . . 3 . . . . . . . . 1 . . . . . . . . . 1 1 9 6 5 . . . . . . Highest-Rated Group 504 | . . 40 . . . . . . . . 96 . . . . . . . . . 46 24 504 380 342 . . . . . . Highest-Rated Ally 159 | . . 16 . . . . . . . . 96 . . . . . . . . . 46 24 159 159 159 . . . . . . Total Orders . | . . . . . . . . . . . . . . . . . . . . . . . . . . . . . . . . Ally Attacks 131 | . . 10 . . . . . . . . 31 . . . . . . . . . 22 1 29 23 15 . . . . . . Total Damage 3376 | . . 89 . . . . . . . . 887 . . . . . . . . . 445 13 961 615 366 . . . . . . Kills 16 | . . . . . . . . . . . 7 . . . . . . . . . 1 . 6 1 1 . . . . . . Allies Corrupted . | . . . . . . . . . . . . . . . . . . . . . . . . . . . . . . . . Allies Melted 2 | . . . . . . . . . . . . . . . . . . . . . . . . . . . . 1 . . 1 Intel | -11 -10 -10 -9 -9 -9 -8 -8 -7 -7 -7 -6 -6 -6 -6 -5 -5 -5 -5 -4 -4 -4 -4 -4 -4 -4 -3 -3 -2 -2 -1 -1 ------- Run | Jun Mat Min Mat Min Exi Min Mat Fac Low Dat Pro Fac Was Fac Fac Upp Upp War Pro Fac Was Fac Ext Cet Arc Res Qua Res Tes Acc Com Robot Analysis Total 5 | . . . . . . . . 2 . . . . . . . . . . . . . . . . . 2 1 . . . . Derelict Logs Recovered 10 | . . 1 . 2 . . . . 2 . 2 . . . . 2 . . 1 . . . . . . . . . . . . Drone Launches . | . . . . . . . . . . . . . . . . . . . . . . . . . . . . . . . . Drone Recoveries . | . . . . . . . . . . . . . . . . . . . . . . . . . . . . . . . . Exploration | -11 -10 -10 -9 -9 -9 -8 -8 -7 -7 -7 -6 -6 -6 -6 -5 -5 -5 -5 -4 -4 -4 -4 -4 -4 -4 -3 -3 -2 -2 -1 -1 ------------- Run | Jun Mat Min Mat Min Exi Min Mat Fac Low Dat Pro Fac Was Fac Fac Upp Upp War Pro Fac Was Fac Ext Cet Arc Res Qua Res Tes Acc Com Turns Passed 18473 | 22 897 346 1269 174 90 487 754 832 225 28 229 169 56 1163 389 209 209 360 127 537 140 556 829 142 1784 1673 800 1116 439 598 1824 Spaces Moved 31213 | 12 723 322 1296 544 321 987 1179 1676 742 117 558 402 163 2500 873 837 430 591 518 1395 140 1118 1492 147 117 3850 1236 1631 969 2100 2227 Core 18 | . . . 2 . . . . . . . . . . . . . . . . 6 . . . . . 1 6 . . . 3 Treads . | . . . . . . . . . . . . . . . . . . . . . . . . . . . . . . . . Legs 11 | 11 . . . . . . . . . . . . . . . . . . . . . . . . . . . . . . . Wheels 1573 | 1 717 322 533 . . . . . . . . . . . . . . . . . . . . . . . . . . . . Hover 6 | . 6 . . . . . . . . . . . . . . . . . . . . . . . . . . . . . . Flight 29605 | . . . 761 544 321 987 1179 1676 742 117 558 402 163 2500 873 837 430 591 518 1389 140 1118 1492 147 117 3849 1230 1631 969 2100 2224 Fastest Speed 5 | 90 56 90 28 28 28 28 23 21 15 24 24 20 26 20 23 20 20 20 20 20 20 5 5 20 5 5 5 5 20 5 5 Average Speed 25 | 117 89 90 57 28 28 28 23 24 23 24 24 23 26 22 23 20 20 20 20 20 23 20 20 20 19 19 21 19 20 19 20 Slowest Speed 350 | 120 120 90 350 28 28 28 32 30 24 24 24 24 26 26 23 23 20 20 20 150 100 100 100 20 20 150 150 20 97 20 106 Overloaded Moves 324 | . . . . . . . . . 8 . . 3 . . . 3 . . . . . 17 24 . 7 121 16 20 . 26 79 Propulsion Burnouts . | . . . . . . . . . . . . . . . . . . . . . . . . . . . . . . . . Robots Hopped 127 | . . . 6 1 . 19 2 3 . . . . . 10 7 . . . . 6 . 6 13 . . 8 2 32 5 4 3 Cave-ins Triggered 3 | . . . . . . . . . . . . . . . . . . . . . . . . . . . . 1 1 . 1 Exploration Rate (%) 58 | 2 98 42 81 97 59 99 76 32 61 74 74 10 94 48 18 73 51 47 62 18 75 25 85 71 73 64 82 27 65 47 57 Regions Visited 31 Branch Regions 17 Pre-discovered Areas 6 | . . . . 2 1 . . . 1 1 . . . . . 1 . . . . . . . . . . . . . . . Known Exits Taken 26 | . 1 1 1 1 1 1 1 1 1 1 1 . . 1 1 1 1 1 1 . . 1 1 1 1 1 1 1 1 1 . Unknown Exits Taken 1 | 1 . . . . . . . . . . . . . . . . . . . . . . . . . . . . . . . Scrap Searched 11 | . . 1 . 3 . 2 . . 2 . . . . . . 2 1 . . . . . . . . . . . . . . Spaces Dug 321 | . . . . . . . 36 13 9 . . 5 . 8 4 . . . . 56 31 13 1 . . 49 11 17 14 37 17 Terrain Destroyed 1431 | . . . 63 13 . 22 69 35 24 . 22 23 . 8 26 . 59 30 . 63 281 47 258 53 . 93 11 84 14 51 82 Melee 198 | . . . . . . . 3 13 . . . 5 . 8 4 . . . . 14 . 13 1 . . 49 11 11 12 37 17 Projectile 3 | . . . . . . . 1 . . . . . . . . . . . . . . . . . . . . . 2 . . AOE 1230 | . . . 63 13 . 22 65 22 24 . 22 18 . . 22 . 59 30 . 49 281 34 257 53 . 44 . 73 . 14 65 Terrain Rammed . | . . . . . . . . . . . . . . . . . . . . . . . . . . . . . . . . Walls Destroyed . | . . . . . . . . . . . . . . . . . . . . . . . . . . . . . . . . Machines Disabled . | . . . . . . . . . . . . . . . . . . . . . . . . . . . . . . . . Actions | -11 -10 -10 -9 -9 -9 -8 -8 -7 -7 -7 -6 -6 -6 -6 -5 -5 -5 -5 -4 -4 -4 -4 -4 -4 -4 -3 -3 -2 -2 -1 -1 --------- Run | Jun Mat Min Mat Min Exi Min Mat Fac Low Dat Pro Fac Was Fac Fac Upp Upp War Pro Fac Was Fac Ext Cet Arc Res Qua Res Tes Acc Com Total 40675 | 20 893 368 1679 561 320 1125 1512 2020 785 116 636 460 177 3064 1045 877 543 811 537 1615 223 1424 1963 254 1877 4702 1741 2353 1182 2248 3544 Wait 6737 | . 66 42 218 13 . 99 122 188 1 . 35 . . 374 112 21 74 186 8 133 60 214 290 95 1744 554 393 622 74 26 973 Move 30957 | 11 722 321 1284 541 320 952 1174 1670 741 116 557 402 162 2479 858 836 429 590 517 1385 139 1105 1469 146 116 3833 1231 1580 961 2091 2219 Hop 97 | . . . 5 1 . 15 2 2 . . . . . 10 7 . . . . 4 . 6 9 . . 8 2 17 2 4 3 Pick Up 209 | 3 13 . 13 2 . 1 18 20 3 . 2 9 3 25 2 5 3 2 1 7 . 7 3 1 3 12 6 1 4 11 29 Fast Attach 184 | 1 9 . 9 . . 2 10 6 4 . . 5 . 5 8 1 . 1 . 3 . 4 6 . . 43 19 10 21 12 5 Attach 109 | 3 4 . 9 . . . 5 10 3 . . 7 2 8 6 5 1 1 1 3 . 2 4 . . 1 1 10 1 4 18 Detach 29 | . . . 1 . . . 2 1 . . . 1 . 2 6 . . 2 . . . . 2 . . . . 10 . 1 1 Swap 150 | . 10 . 11 2 . 8 16 16 5 . 2 4 . 11 3 1 7 4 . 10 8 6 10 2 . 8 3 1 1 . 1 Drop 385 | 2 18 . 22 1 . 6 28 26 10 . 2 11 3 27 9 6 4 3 . 10 . 11 8 . 3 56 25 10 24 23 37 Fire 290 | . 39 5 71 1 . 26 40 3 4 . 5 4 . . 2 1 6 20 . 3 16 1 12 1 . 4 . 20 3 3 . Melee 877 | . . . . . . . 47 68 . . 17 17 . 74 26 1 5 . 10 45 . 45 45 5 6 137 50 31 48 62 138 Ram . | . . . . . . . . . . . . . . . . . . . . . . . . . . . . . . . . Kick . | . . . . . . . . . . . . . . . . . . . . . . . . . . . . . . . . Crush . | . . . . . . . . . . . . . . . . . . . . . . . . . . . . . . . . Escape Stasis 86 | . . . . . . . . 4 . . . . . . . . . . . . . . 54 . . . . 1 26 . 1 Rewire . | . . . . . . . . . . . . . . . . . . . . . . . . . . . . . . . . Trap . | . . . . . . . . . . . . . . . . . . . . . . . . . . . . . . . . Miscellaneous 565 | . 12 . 36 . . 16 48 6 14 . 16 . 7 49 6 . 14 2 . 12 . 23 51 4 5 46 11 40 17 11 119 Route ------- -11/Junkyard -10/Materials (discovered 5 exits: *Mat x3 / *Min x2) -10/Mines -9/Materials (discovered 4 exits: *Mat x3 / *Min) -9/Mines (discovered 3 exits: *Mat x2 / *Exi) -9/Exiles (discovered 2 exits: *Min x2) -8/Mines (discovered 2 exits: *Mat x2) -8/Materials (discovered 2 exits: *Fac x2) -7/Factory (discovered 3 exits: *Fac x2 / *Low) -7/Lower Caves (discovered 2 exits: Low / *Dat) -7/Data Miner -6/Proximity Caves -6/Factory -6/Waste -6/Factory (discovered 3 exits: *Fac x2 / *Low) -5/Factory (discovered 2 exits: *Upp x2) -5/Upper Caves -5/Upper Caves (discovered 2 exits: *Fac / *War) -5/Warlord -4/Proximity Caves -4/Factory (discovered 4 exits: Res / Upp x2 / Ext) -4/Waste -4/Factory (discovered 2 exits: *Res / *Ext) -4/Extension (discovered 2 exits: *Res / *Cet) -4/Cetus -4/Archives (discovered 3 exits: *Res / *Hub x2) -3/Research (discovered 5 exits: *Res x2 / *Arm / *Qua x2) -3/Quarantine -2/Research -2/Testing -1/Access -1/Command (discovered 2 exits: *Sur x2) 0b11 Command History --------- Turn | Location | Event 1 | -11/Junkyard | Upgraded with Propulsion slot (x1) 1 | -11/Junkyard | Upgraded with Utility slot (x1) 1 | -11/Junkyard | Upgraded with Weapon slot (x1) 1 | -11/Junkyard | Discovered new exit (range 3) 23 | -11/Junkyard | Entered Materials 145 | -10/Materials | Discovered new exit (range 13) 175 | -10/Materials | Identified exit to Materials 351 | -10/Materials | Build established: Mutant 354 | -10/Materials | Discovered exit to Materials (range 8) 511 | -10/Materials | Discovered new exit (range 12) 704 | -10/Materials | Reached level 2 744 | -10/Materials | Discovered exit to Materials (range 7) 847 | -10/Materials | Upgraded with Utility slot (x1) 895 | -10/Materials | Discovered new exit (range 9) 920 | -10/Materials | Identified exit to Mines 920 | -10/Materials | Entered Mines 950 | -10/Mines | Discovered exit to Materials (range 8) 966 | -10/Mines | Assisted by bots powering up and referring to "LRC-V3" 1028 | -10/Mines | Learned Materials terminal intel 1134 | -10/Mines | Build established: Scavenger-Mutant 1170 | -10/Mines | Assembled infested the area 1175 | -10/Mines | Assisted by a Guerilla fighting off Assembled 1266 | -10/Mines | Entered Materials 1267 | -9/Materials | Loaded intel: 12 terminal locations 1268 | -9/Materials | Reached level 3 1273 | -9/Materials | Upgraded with Utility slot (x1) 1556 | -9/Materials | Reached level 4 1679 | -9/Materials | Discovered new exit (range 16) 1701 | -9/Materials | Identified exit to Materials 1790 | -9/Materials | Identified exit to Mines 1898 | -9/Materials | Destroyed 7 combat bots 1940 | -9/Materials | Discovered exit to Materials (range 5) 1994 | -9/Materials | Reached level 5 2008 | -9/Materials | Upgraded with Propulsion slot (x2) 2159 | -9/Materials | Upgraded with Utility slot (x1) 2231 | -9/Materials | Discovered exit to Materials (range 3) 2371 | -9/Materials | Build established: Scavenger-Sprinter 2418 | -9/Materials | Reached level 6 2423 | -9/Materials | Upgraded with Power slot (x1) 2466 | -9/Materials | First assault squad dispatched 2535 | -9/Materials | Entered Mines 2539 | -9/Mines | Learned location of Storage (-7) 2545 | -9/Mines | YI-UF0 nonchalantly dropped a Grenade Launcher on the ground 2567 | -9/Mines | Deemed a non-threat by the Exiles lab entrance 2567 | -9/Mines | Discovered new exit (range 5) 2611 | -9/Mines | Learned location of Zion (-6) 2629 | -9/Mines | Discovered exit to Materials (range 7) 2656 | -9/Mines | Received a Rocket Launcher from a helpful Derelict 2676 | -9/Mines | Discovered exit to Materials (range 7) 2679 | -9/Mines | Received a Mining Laser from a helpful Derelict 2708 | -9/Mines | Identified exit to Exiles 2709 | -9/Mines | Entered Exiles 2711 | -9/Exiles | Reached level 7 2714 | -9/Exiles | Discovered new exit (range 15) 2717 | -9/Exiles | Met 8R-AWN 2722 | -9/Exiles | Met EX-HEX 2733 | -9/Exiles | Met EX-DEC 2741 | -9/Exiles | Met EX-BIN 2797 | -9/Exiles | Discovered new exit (range 10) 2799 | -9/Exiles | Identified exit to Mines 2799 | -9/Exiles | Entered Mines 2896 | -8/Mines | Discovered exit to Materials (range 14) 2897 | -8/Mines | Discovered exit to Materials (range 3) 3087 | -8/Mines | Reached level 8 3286 | -8/Mines | Entered Materials 3288 | -8/Materials | Reached level 9 3309 | -8/Materials | Upgraded with Propulsion slot (x2) 3628 | -8/Materials | Reached level 10 3679 | -8/Materials | Discovered new exit (range 8) 3680 | -8/Materials | Identified exit to Factory 3832 | -8/Materials | Discovered exit to Factory (range 3) 3838 | -8/Materials | Reached level 11 3840 | -8/Materials | Upgraded with Utility slot (x1) 3955 | -8/Materials | Destroyed 8 combat bots 4040 | -8/Materials | Entered Factory 4042 | -7/Factory | Reached level 12 4071 | -7/Factory | Repaired Imp. Sensor Array 4126 | -7/Factory | Reached level 13 4277 | -7/Factory | Repaired Broken Reaction Control System 4369 | -7/Factory | Build established: Hacker-Sprinter 4374 | -7/Factory | Upgraded with Utility slot (x1) 4532 | -7/Factory | Reached level 14 4776 | -7/Factory | Discovered new exit (range 6) 4777 | -7/Factory | Identified exit to Factory 4799 | -7/Factory | Core integrity fell below 50% 4805 | -7/Factory | Discovered new exit (range 15) 4819 | -7/Factory | Identified exit to Lower Caves 4828 | -7/Factory | Discovered exit to Factory (range 10) 4840 | -7/Factory | First assault squad dispatched 4872 | -7/Factory | Entered Lower Caves 5004 | -7/Lower Caves | Identified exit to Lower Caves 5049 | -7/Lower Caves | A Derelict revealed a hidden shortcut to meet someone special 5052 | -7/Lower Caves | Identified exit to Data Miner 5097 | -7/Lower Caves | Entered Data Miner 5097 | -7/Data Miner | Discovered new exit (range 6) 5099 | -7/Data Miner | Reached level 15 5099 | -7/Data Miner | Identified exit to Proximity Caves 5105 | -7/Data Miner | Met Data Miner 5117 | -7/Data Miner | Learned location of Section 7 (-2) 5117 | -7/Data Miner | Acquired the access code to Warlord's prototype stash 5119 | -7/Data Miner | Received God Mode back door access code from Data Miner 5125 | -7/Data Miner | Entered Proximity Caves 5213 | -6/Proximity Caves | Escorted by Enhanced Grunt 5232 | -6/Proximity Caves | Attracted the attention of an 0b10 outpost 5240 | -6/Proximity Caves | Reached level 16 5274 | -6/Proximity Caves | Spotter reported a threat 5280 | -6/Proximity Caves | Spotter reported a threat 5327 | -6/Proximity Caves | Spotter reported a threat 5330 | -6/Proximity Caves | Spotted B-75 Beast 5333 | -6/Proximity Caves | Spotter reported a threat 5352 | -6/Proximity Caves | Discovered exit to Factory (range 5) 5354 | -6/Proximity Caves | Entered Factory 5355 | -6/Factory | Upgraded with Utility slot (x1) 5356 | -6/Factory | Reached level 17 5365 | -6/Factory | Reached level 18 5523 | -6/Factory | Sucked down chute 5523 | -6/Factory | Entered Waste 5535 | -6/Waste | Spotted C-40 Crusher 5536 | -6/Waste | Spotted C-40 Crusher 5537 | -6/Waste | Found Prototype Device 5538 | -6/Waste | EMP discharged 5538 | -6/Waste | Identified Adv. EM Disruption Field 5553 | -6/Waste | Spotted C-40 Crusher 5554 | -6/Waste | Spotted C-40 Crusher 5559 | -6/Waste | Spotted C-40 Crusher 5562 | -6/Waste | Spotted C-40 Crusher 5565 | -6/Waste | Discovered new exit (range 13) 5579 | -6/Waste | Identified exit to Factory 5579 | -6/Waste | Entered Factory 5588 | -6/Factory | Spotted B-75 Beast 5671 | -6/Factory | Fabricated Imp. Medium Armor Plating (x1) 5675 | -6/Factory | System corruption reached 10% 5760 | -6/Factory | Found Launcher Loader 5765 | -6/Factory | Upgraded with Utility slot (x1) 5937 | -6/Factory | Repaired Nanoactuators 6280 | -6/Factory | Discovered new exit (range 3) 6281 | -6/Factory | Identified exit to Lower Caves 6555 | -6/Factory | Discovered new exit (range 13) 6557 | -6/Factory | Identified exit to Factory 6626 | -6/Factory | Reached level 19 6674 | -6/Factory | Fabricated Adv. Signal Interpreter (x2) 6696 | -6/Factory | Discovered exit to Factory (range 14) 6742 | -6/Factory | Entered another Factory area 6743 | -5/Factory | Identified exit to Upper Caves 6744 | -5/Factory | Reached level 20 6890 | -5/Factory | Discovered exit to Upper Caves (range 16) 7032 | -5/Factory | Repaired Broken Fission Core 7042 | -5/Factory | First assault squad dispatched 7131 | -5/Factory | Entered Upper Caves 7133 | -5/Upper Caves | Reached level 21 7133 | -5/Upper Caves | Destroyed 8 combat bots 7134 | -5/Upper Caves | Upgraded with Utility slot (x1) 7183 | -5/Upper Caves | Learned location of Armory (-3) 7284 | -5/Upper Caves | Learned Factory trap positions 7329 | -5/Upper Caves | Discovered new exit (range 8) 7337 | -5/Upper Caves | Identified exit to Upper Caves 7340 | -5/Upper Caves | Entered another Upper Caves area 7343 | -5/Upper Caves | Discovered new exit (range 7) 7346 | -5/Upper Caves | Attracted the attention of an 0b10 checkpoint 7363 | -5/Upper Caves | Identified exit to Factory 7548 | -5/Upper Caves | Discovered new exit (range 5) 7549 | -5/Upper Caves | Identified exit to Warlord 7549 | -5/Upper Caves | Entered Warlord 7567 | -5/Warlord | Discovered new exit (range 9) 7573 | -5/Warlord | Identified exit to Proximity Caves 7602 | -5/Warlord | Met Warlord 7604 | -5/Warlord | Opened Warlord's prototype stash 7606 | -5/Warlord | Found Prototype Reactor 7608 | -5/Warlord | Identified Vortex Chain Reactor 7627 | -5/Warlord | Warlord's base attacked by MAIN.C 7711 | -5/Warlord | Reached level 22 7865 | -5/Warlord | Warlord forces counterattacked 7909 | -5/Warlord | Entered Proximity Caves 7925 | -4/Proximity Caves | Attracted the attention of an 0b10 checkpoint 7933 | -4/Proximity Caves | Reached level 23 8013 | -4/Proximity Caves | Learned Research terminal intel 8016 | -4/Proximity Caves | Learned Research stockpile data 8016 | -4/Proximity Caves | Learned Extension security intel 8016 | -4/Proximity Caves | Learned Research terminal intel 8029 | -4/Proximity Caves | Discovered exit to Factory (range 14) 8036 | -4/Proximity Caves | Entered Factory 8037 | -4/Factory | Identified exit to Research 8037 | -4/Factory | Identified exit to Upper Caves 8037 | -4/Factory | Identified exit to Extension 8038 | -4/Factory | Loaded intel: 101 trap records 8071 | -4/Factory | Reached level 24 8573 | -4/Factory | Manually triggered Chute Trap 8573 | -4/Factory | Sucked down chute 8573 | -4/Factory | Entered Waste 8574 | -4/Waste | Met a frightened Derelict 8580 | -4/Waste | Spotted C-40 Crusher 8580 | -4/Waste | Spotted C-40 Crusher 8590 | -4/Waste | Destroyed C-40 Crusher 8595 | -4/Waste | Spotted C-40 Crusher 8616 | -4/Waste | Destroyed C-40 Crusher 8619 | -4/Waste | Allies destroyed C-40 Crusher 8627 | -4/Waste | Spotted C-40 Crusher 8630 | -4/Waste | Spotted C-40 Crusher 8634 | -4/Waste | Spotted C-40 Crusher 8634 | -4/Waste | Destroyed C-40 Crusher 8634 | -4/Waste | Destroyed C-40 Crusher 8645 | -4/Waste | Destroyed C-40 Crusher 8697 | -4/Waste | Discovered new exit (range 13) 8705 | -4/Waste | Identified exit to Factory 8713 | -4/Waste | Entered Factory 8713 | -4/Factory | Accompanied by 1 ally 8853 | -4/Factory | Incoming investigation squad redirected 8870 | -4/Factory | Fabricated Gravity Neutralizer (x1) 8963 | -4/Factory | First assault squad dispatched 9162 | -4/Factory | Reached level 25 9163 | -4/Factory | Upgraded with Utility slot (x1) 9178 | -4/Factory | Discovered exit to Extension (range 6) 9183 | -4/Factory | Found Prototype Launcher 9184 | -4/Factory | Identified Mni. Smartbomb Launcher 9205 | -4/Factory | Discovered exit to Research (range 12) 9250 | -4/Factory | Spotted B-86 Titan 9269 | -4/Factory | Entered Extension 9499 | -4/Extension | Spotted B-86 Titan 9554 | -4/Extension | Destroyed B-86 Titan 9602 | -4/Extension | Spotted B-86 Titan 9620 | -4/Extension | Core integrity fell below 50% 9624 | -4/Extension | Destroyed B-86 Titan 9665 | -4/Extension | Rescued a captive Derelict 9666 | -4/Extension | Rescued a captive Derelict 9683 | -4/Extension | Rescued a captive Derelict 9740 | -4/Extension | Rescued A7 9846 | -4/Extension | Rescued a captive Derelict 9847 | -4/Extension | Rescued a captive Derelict 9863 | -4/Extension | Energy Cycler disabled 9864 | -4/Extension | Rescued a captive Derelict 9867 | -4/Extension | Rescued a captive Derelict 9870 | -4/Extension | Rescued a captive Derelict 9926 | -4/Extension | Reached level 26 10019 | -4/Extension | First assault squad dispatched 10042 | -4/Extension | Incoming assault squad redirected 10048 | -4/Extension | Disrupted transfer network 10074 | -4/Extension | Discovered exit to Research (range 10) 10077 | -4/Extension | Discovered new exit (range 6) 10078 | -4/Extension | Identified exit to Cetus 10098 | -4/Extension | Entered Cetus 10098 | -4/Cetus | Accompanied by 6 allies (A7) 10103 | -4/Cetus | Acquired a Cetus Manufacturing Module code from A7 10116 | -4/Cetus | Spotted Cetus Guard 10116 | -4/Cetus | Spotted Cetus Guard 10118 | -4/Cetus | Spotted Cetus Guard 10119 | -4/Cetus | Spotted Cetus Guard 10124 | -4/Cetus | Allies destroyed Cetus Guard 10128 | -4/Cetus | Destroyed Cetus Guard 10131 | -4/Cetus | Destroyed Cetus Guard 10133 | -4/Cetus | Destroyed Cetus Guard 10191 | -4/Cetus | Escorted A7 to Cetus Mainframe 10203 | -4/Cetus | Discovered new exit (range 15) 10205 | -4/Cetus | Identified exit to Archives 10240 | -4/Cetus | Entered Archives 10240 | -4/Archives | Accompanied by 5 allies (A7) 10245 | -4/Archives | Received a hacking code to weaken MAIN.C 10265 | -4/Archives | Discovered new exit (range 15) 10265 | -4/Archives | Discovered new exit (range 16) 12004 | -4/Archives | Identified exit to Hub_04(d) 12021 | -4/Archives | Discovered exit to Research (range 15) 12024 | -4/Archives | Entered Research 12026 | -3/Research | Loaded intel: 24 terminal locations 12026 | -3/Research | Reached level 27 12162 | -3/Research | Incoming investigation squad redirected 12176 | -3/Research | Incoming investigation squad redirected 12203 | -3/Research | Fabricated Mni. Smartbomb Launcher? 12270 | -3/Research | Found Gamma Bomb Array 12280 | -3/Research | Discovered new exit (range 5) 12281 | -3/Research | Identified exit to Armory 12315 | -3/Research | Found Prototype Device 12315 | -3/Research | Identified Exp. Shield Generator 12342 | -3/Research | Discovered new exit (range 9) 12344 | -3/Research | Identified exit to Quarantine 12377 | -3/Research | Spotted B-86 Titan 12379 | -3/Research | Found Prototype Device 12379 | -3/Research | Identified Exp. EM Disruption Field 12447 | -3/Research | Reached level 28 12508 | -3/Research | Upgraded with Utility slot (x1) 12617 | -3/Research | Found Prototype Launcher 12617 | -3/Research | Identified Tactical Quantum Warhead 12663 | -3/Research | Spotted B-86 Titan 12667 | -3/Research | Destroyed B-86 Titan 12691 | -3/Research | Discovered new exit (range 10) 12693 | -3/Research | Identified exit to Research 12711 | -3/Research | Destroyed B-86 Titan 12824 | -3/Research | Incoming investigation squad redirected 13144 | -3/Research | Discovered exit to Research (range 11) 13345 | -3/Research | Discovered exit to Quarantine (range 5) 13524 | -3/Research | First assault squad dispatched 13582 | -3/Research | Found Prototype Launcher 13582 | -3/Research | Identified Adv. Micro-nuke Launcher 13585 | -3/Research | Incoming assault squad redirected 13697 | -3/Research | Entered Quarantine 13699 | -3/Quarantine | Reached level 29 13735 | -3/Quarantine | Found Alien Impact Weapon 13735 | -3/Quarantine | Identified Core Stripper 13892 | -3/Quarantine | Incoming investigation squad redirected 13902 | -3/Quarantine | Spotted Alpha 7 13918 | -3/Quarantine | Found Prototype Device 13918 | -3/Quarantine | Identified Exp. Thermal Defense Suite 13931 | -3/Quarantine | Found Alien Launcher 13931 | -3/Quarantine | Identified Sigix Terminator 13960 | -3/Quarantine | Found Alien Reactor 13960 | -3/Quarantine | Identified Matter Drive 14403 | -3/Quarantine | Discovered exit to Research (range 9) 14412 | -3/Quarantine | Found Sigix Corpse 14440 | -3/Quarantine | Found Enh. Force Lance 14471 | -3/Quarantine | Found Alien Slashing Weapon 14471 | -3/Quarantine | Identified Sigix Broadsword 14497 | -3/Quarantine | Entered Research 14497 | -2/Research | Warlord forces began assault on 0b10 14498 | -2/Research | Loaded intel: 22 terminal locations 14499 | -2/Research | Reached level 30 14563 | -2/Research | Spotted B-90 Cyclops 14607 | -2/Research | Research machine network offline 14720 | -2/Research | Spotted B-90 Cyclops 14735 | -2/Research | Discovered new exit (range 10) 14736 | -2/Research | Identified exit to Testing 14737 | -2/Research | Met up with Warlord 14787 | -2/Research | Reached level 31 14793 | -2/Research | Upgraded with Utility slot (x1) 14796 | -2/Research | Found Prototype Processor 14796 | -2/Research | Identified Exp. Melee Analysis Suite 14919 | -2/Research | Borebot progress halted 14960 | -2/Research | Crushed by falling debris 15008 | -2/Research | Borebot progress halted 15057 | -2/Research | Spotted Striker 15057 | -2/Research | Spotted Executioner 15060 | -2/Research | Destroyed Executioner 15133 | -2/Research | Borebot progress halted 15299 | -2/Research | Spotted Striker 15299 | -2/Research | Spotted Executioner 15304 | -2/Research | Destroyed Executioner 15314 | -2/Research | Spotted Striker 15317 | -2/Research | Destroyed Striker 15381 | -2/Research | Spotted Executioner 15383 | -2/Research | Spotted Striker 15438 | -2/Research | Spotted Striker 15462 | -2/Research | Spotted Striker 15464 | -2/Research | Destroyed Striker 15497 | -2/Research | Warlord invited to help at Command 15584 | -2/Research | Spotted Striker 15601 | -2/Research | Spotted Striker 15601 | -2/Research | Spotted Executioner 15613 | -2/Research | Entered Testing 15693 | -2/Testing | Reached level 32 15746 | -2/Testing | Found Prototype Processor 15746 | -2/Testing | Identified Exp. Target Analyzer 15751 | -2/Testing | Found Prototype Device 15751 | -2/Testing | Identified Exp. Shock Absorption System 15761 | -2/Testing | Found Prototype Slashing Weapon 15761 | -2/Testing | Identified Centrium Greatsword 15767 | -2/Testing | Found Prototype Slashing Weapon 15767 | -2/Testing | Identified Molecular Scythe 15784 | -2/Testing | Crushed by falling debris 15841 | -2/Testing | Found Prototype Slashing Weapon 15841 | -2/Testing | Identified Nanosword 15848 | -2/Testing | Found Exp. Melee Analysis Suite 15863 | -2/Testing | First assault squad dispatched 15879 | -2/Testing | Incoming assault squad redirected 15903 | -2/Testing | Found Prototype Energy Cannon 15903 | -2/Testing | Identified Imp. Potential Cannon 15953 | -2/Testing | Superbehemoth self-activated to run performance analysis 15963 | -2/Testing | Spotted Superbehemoth 15971 | -2/Testing | Incoming investigation squad redirected 15982 | -2/Testing | Found Prototype Processor 15982 | -2/Testing | Identified Spectral Analyzer 16052 | -2/Testing | Discovered new exit (range 3) 16052 | -2/Testing | Identified exit to Access 16052 | -2/Testing | Entered Access 16054 | -1/Access | Reached level 33 16302 | -1/Access | First assault squad dispatched 16335 | -1/Access | Incoming investigation squad redirected 16372 | -1/Access | Found Prototype Device 16372 | -1/Access | Identified Exp. Thermal Shield 16411 | -1/Access | Found Prototype Device 16411 | -1/Access | Identified Exp. Phase Shifter 16545 | -1/Access | Identified exit to Command 16574 | -1/Access | Incoming assault squad redirected 16575 | -1/Access | Incoming investigation squad redirected 16650 | -1/Access | Entered Command 16652 | -1/Command | Reached level 34 16722 | -1/Command | Reached level 35 16812 | -1/Command | Phase Generator disabled 16857 | -1/Command | Spotted B-99 Colossus 16938 | -1/Command | Spotted M Guard 16938 | -1/Command | Spotted M Guard 16940 | -1/Command | Spotted Combat Programmer 16952 | -1/Command | Spotted Combat Programmer 16954 | -1/Command | Destroyed Combat Programmer 16976 | -1/Command | Destroyed Combat Programmer 17008 | -1/Command | Core integrity fell below 50% 17016 | -1/Command | Destroyed M Guard 17017 | -1/Command | Core integrity fell below 20% 17126 | -1/Command | Destroyed M Guard 17126 | -1/Command | All MAIN.C guards destroyed 17216 | -1/Command | Disengaged cave seal 17216 | -1/Command | Derelicts emerged from the dark tunnel 17216 | -1/Command | Welcomed Warlord to Command 17400 | -1/Command | First assault squad dispatched 17428 | -1/Command | Incoming assault squad redirected 17463 | -1/Command | Warlord commented on Warlord statues 17470 | -1/Command | Incoming investigation squad redirected 17587 | -1/Command | Met MAIN.C 17587 | -1/Command | Reached level 36 17590 | -1/Command | 0b10 Conduit disabled 17622 | -1/Command | Destroyed MAIN.C Shell 17623 | -1/Command | MAIN.C activated Command garrisons 17635 | -1/Command | Reached level 37 17635 | -1/Command | Destroyed MAIN.C 17637 | -1/Command | Discovered new exit (range 37) 17637 | -1/Command | Discovered new exit (range 95) 17637 | -1/Command | Extracted map data and part IDs from MAIN.C's data core 17644 | -1/Command | System corruption reached 10% 17735 | -1/Command | Found Zero-point Reactor 17752 | -1/Command | Found AEGIS Remote Shield 17755 | -1/Command | Found Exp. Transmission Jammer 17772 | -1/Command | Crushed by falling debris 17797 | -1/Command | Found Exp. System Purifier 18473 | -1/Command | Identified exit to Surface 18474 | *** | Establishing 0b11! Last Messages --------------- 17855_ Exp. System Purifier purges 1% system corruption (5%). 17857_ System corrupted: Matter fused (-10). 17867_ Exp. System Purifier purges 1% system corruption (4%). 17869_ Exp. System Purifier purges 1% system corruption (3%). 17878_ Exp. System Purifier purges 1% system corruption (2%). 17879_ Exp. System Purifier purges 1% system corruption (1%). 17880_ Exp. System Purifier purges 1% system corruption (0%). 17880_ Dropped Exp. System Purifier. 18347_ Acquired 22 matter. 18355_ Acquired 3 matter. 18356_ Acquired 1 matter. 18365_ Sneak attack on ZY-L1N. 18473_ EXIT=IDENTIFIED: SURFACE 18474_ Upgraded: Hack Attack % (+5) 18474_ Upgraded: KI Resistance % (+10) 18474_ Upgraded: TH Resistance % (+10) 18474_ Upgraded: EX Resistance % (+10) [Achievement: 40k Club] [Achievement: 50k Club] [Achievement: Commander 0b11] Map ----- +----------------------------------------------------+ | #????# ## #?# #?????????????? | | ###+#####????# ## #?# #?????????????? | | ## #????????# + #?# #?????????????? | | ##+#####????# ## #?# #?????????????? | | # ! #????# ######+#####?# #?????????????? | | # #????### ###??# #????##+######????????? | | ## #??????# #????# #????# #????????? | | ## #??????# #????# #????# #?######## | | ## #??????# #????# #????# "" #?#??????? | | ## #?????## ##???# ###### "" #?#?###### | | ##+############ #???# ^ # "Y #?#?#""""" | | = #???#^^^^ + "" #?#?#"" | | #???# ^ # "" #?#?#""""" | | ########## #???# # #?#?#""""" | | ! ############""##### # #?#?#" " | | ! % =!%= [ # #?#?#"" " | | ! *% [ % |* " #?#?#"" " | | %%%! [!%%= ####+####?#?# " " | | #######+#########=*%! =### #??# #????#?# " | | # *#?#=%############+#### #????#?# " | | # #?#[!#????????# # #????#?#""""" | | # |!=#?#%=#????????# # #????#?#""=== | | # |!=#?#!*#????????#"" " ##???#?#==%=! | | # |= #?#%%#???######"" " "#???#?#**=* | | # ###=!#???# ##"" ! [" "#######%= | | ############+###"*!##### @ ##T =% % ] *[! | | #""""""# # ##"" % / | | + """# # ##"" " % | | + """# """" # ##########"" " % ###### | | + """# """" # #????????# # #??#?# " | | #""""""# """" + #????????# = # #??#?# | | ######## """" # #????????# + #??#?###### | | ???????# # #????????# # #??#??????? | | ???????# = # #?????#####+##### #??######## | | ???????# # #?????# ### #?????????? | | ???????# !/ # #?????# !+ #?????????? | | ######## / # #?????# %#######?????????? | | "" + + #[ #?????# #???????????????? | | "" ### #%*#?????# ! %#???????????????? | | #?##########%=#?????# %%% #???????????????? | | ######?????#=%####### ######??????????? | | # #######%%# ######+""# #??????????? | | """ + *% = [% ! #??????????? | | """ # "" = =!*%= #??????????? | | """ # ########## % ##"####### #??????????? | | """ ## ##??########+#### ### ##??????????? | | ## #???# # = !! #?# #???????????? | | ## #???# # !! #?# #???????????? | | + #???# + ! #?# #???????????? | | ####### #???# = # #?# #???????????? | +----------------------------------------------------+ Best States ------------- Heat Dissipation 68 Energy Generation 80 Energy Capacity 700 Matter Stores 300 Matter Capacity 300 Sight Range 16 Robot Scan Range 16 Terrain Scan Density 10 Additional Mass Support 12 Armor Coverage 225 Resistance: KI 30 Resistance: TH 30 Resistance: EM 75 Weapon Shielding 66 Melee Speed Boost 50 Phase Shifting 20 Evasion (%) 98 Melee Accuracy 12 Core Analysis 9 Recoil Reduction 1 Offensive Hacking 20 Defensive Hacking 15 Item Schematics ----------------- Imp. Flight Unit | -8/Materials | Scanalyzed Microactuators | -7/Factory | Scanalyzed Combat Drone Bay | -7/Data Miner | Free Lgt. Regenerative Plating | -7/Data Miner | Free Biomechanical Wings | -7/Data Miner | Free Thermal Defense Suite | -7/Data Miner | Free Cld. Plasma Cannon | -7/Data Miner | Free Field Propulsion Drive | -7/Data Miner | Free Lyr. Heavy Armor Plating | -7/Data Miner | Free Enh. Gauss Cannon | -7/Data Miner | Free Point Defense System | -7/Data Miner | Free Imp. Thermal Shield | -7/Data Miner | Free Point Defense Array | -7/Data Miner | Free Imp. Medium Armor Plating | -6/Factory | Scanalyzed Core Analyzer | -6/Factory | Scanalyzed Adv. Signal Interpreter | -6/Factory | Hacked Power Sword | -5/Factory | Scanalyzed Phase Shifter | -5/Factory | Scanalyzed Nanoactuators | -5/Factory | Scanalyzed Imp. Actuator Array | -5/Factory | Scanalyzed Adv. Weight Redist. System | -5/Factory | Scanalyzed Fission Core | -5/Factory | Scanalyzed Rocket Launcher | -5/Factory | Scanalyzed Cld. Cesium-ion Thruster | -5/Factory | Scanalyzed Gravity Neutralizer | -4/Factory | Hacked Graphene Brace | -4/Factory | Hacked Mni. Smartbomb Launcher | -3/Research | Scanalyzed Imp. Light Armor Plating | -3/Research | Scanalyzed Com. Particle Reactor | -3/Quarantine | Archive Cld. Nuclear Pulse Thruster | -3/Quarantine | Archive Robot Schematics ------------------ G-50 Soldier | -7/Data Miner | Free A-15 Conveyor | -7/Data Miner | Free M-28 Smith | -7/Data Miner | Free P-60 Hacker | -7/Data Miner | Free Y-64 Sentinel | -7/Data Miner | Free G-47 Trooper | -7/Data Miner | Free Fabricated ------------ Imp. Medium Armor Plating | x1 | -6/Factory Adv. Signal Interpreter | x2 | -6/Factory Gravity Neutralizer | x1 | -4/Factory Mni. Smartbomb Launcher | x1 | -3/Research Alien Tech Used ----------------- Core Stripper Sigix Terminator Matter Drive Sigix Broadsword Achievements -------------- 40k Club 50k Club Adventurer Charge!!! Collateral Damage Commander 0b11 Corridor Of Doom Explorer Hard Hitter More Power To You Origins Prison Break The Oracle void main() Challenges ------------ None RPGLIKE | -11 -10 -10 -9 -9 -9 -8 -8 -7 -7 -7 -6 -6 -6 -6 -5 -5 -5 -5 -4 -4 -4 -4 -4 -4 -4 -3 -3 -2 -2 -1 -1 --------- Run | Jun Mat Min Mat Min Exi Min Mat Fac Low Dat Pro Fac Was Fac Fac Upp Upp War Pro Fac Was Fac Ext Cet Arc Res Qua Res Tes Acc Com Levels Raised 36 | . 1 . 4 . 1 1 3 3 . 1 1 2 . 1 1 1 . 1 1 1 . 1 1 . . 2 1 2 1 1 4 XP Earned 57106 | 3000 1775 500 5669 950 200 1750 5395 3959 591 421 2465 2060 97 1269 2563 397 820 931 1250 2024 103 825 1773 343 270 3178 887 3374 962 2486 4819 XP Spent 57000 | 3000 1010 . 5480 . . . 7050 5500 . . . 2300 . 4300 . 4360 . 600 1100 . . 3200 1500 . . 3500 . 3800 1600 2350 6350 Upgrades 69 | 6 4 . 14 . . . 5 8 . . . 1 . 6 . 4 . 1 1 . . 1 1 . . 1 . 1 1 2 12 Power Slot 1 | . . . 1 . . . . . . . . . . . . . . . . . . . . . . . . . . . . Propulsion Slot 5 | 1 . . 2 . . . 2 . . . . . . . . . . . . . . . . . . . . . . . . Utility Slot 12 | 1 1 . 2 . . . 1 1 . . . 1 . 1 . 1 . . . . . 1 . . . 1 . 1 . . . Weapon Slot 1 | 1 . . . . . . . . . . . . . . . . . . . . . . . . . . . . . . . Core Integrity 8 | . . . 8 . . . . . . . . . . . . . . . . . . . . . . . . . . . . Heat Dissipation 4 | . 3 . . . . . . . . . . . . . . 1 . . . . . . . . . . . . . . . Energy Generation 5 | . . . . . . . . . . . . . . 1 . 2 . . . . . . . . . . . . . 2 . Mass Support 4 | . . . 1 . . . . . . . . . . . . . . 1 1 . . . . . . . . . 1 . . Inventory Capacity 6 | 3 . . . . . . 2 . . . . . . . . . . . . . . . 1 . . . . . . . . Melee Accuracy 9 | . . . . . . . . . . . . . . 4 . . . . . . . . . . . . . . . . 5 Hack Attack % 5 | . . . . . . . . 4 . . . . . . . . . . . . . . . . . . . . . . 1 Hack Defense % 3 | . . . . . . . . 3 . . . . . . . . . . . . . . . . . . . . . . . KI Resistance % 2 | . . . . . . . . . . . . . . . . . . . . . . . . . . . . . . . 2 TH Resistance % 2 | . . . . . . . . . . . . . . . . . . . . . . . . . . . . . . . 2 EX Resistance % 2 | . . . . . . . . . . . . . . . . . . . . . . . . . . . . . . . 2 Protomatter Created 4343 | . 53 . 311 . . 113 489 6 . . 73 65 . 450 56 . 8 101 59 105 . 178 304 97 82 518 131 298 310 93 443 Integrity Restored 11316 | . 249 . 795 . . 339 943 123 306 . 339 . 153 1011 123 . 299 22 . 263 . 468 1004 80 64 834 201 743 330 193 2434 Core 9349 | . 249 . 795 . . 339 801 123 306 . 339 . 153 795 107 . 183 8 . 201 . 335 766 67 51 623 163 442 255 171 2077 Parts 1967 | . . . . . . . 142 . . . . . . 216 16 . 116 14 . 62 . 133 238 13 13 211 38 301 75 22 357 Protomatter Decayed 9901 | . . 61 41 . . . 16 . . . . . . 14 . . 52 46 . 5 . 102 116 28 21 155 . 2497 397 78 6272 Game ------ Seed SpliceMissileSubcomponent Manual? 0 Play Time 05:25:57 Cumulative 77.0 hours Start 2024.02.18 @ 19:13:09 End 2024.02.20 @ 22:12:34 Sessions 42 Manual Loads 0 Difficulty Rogue Special Mode Winter2019/RPGLIKE Game No. 56 Rogue 54 Adventurer 2 Explorer 0 Win Type 1 Total 2 Types 1/1/0/0/0/0/0/0/0 Lore% 36 Gallery% 60 Achievement% 45 Wizard Run 0 Options --------- ASCII 0 Keyboard 0 Movement Mouse Keybinds 1 Fullscreen 2 Font 18/SmallcapsGlow Map View 76x50 Tactical HUD 1 Map Filters NONE Filters NONE Steam 1 RUN: e3fe1d03-5e36-47c4-a39f-0b2e501b3d58